Workbook

Sheet ExcelVideos
D1: Select a video made before 6/17/2013 from the list bellow | N1: Excel Online Teammate: Christian Cricboom
A2: http://www.youtube.com/v/qJnL5hFfcYo | E2: Excel Array Formula Series 12: MMULT function Matrix Algebra
D4: Search video using key words | L4: Found | W4: Download files:
A5: Scroll Value | D5: Key words: | E5: * | L5: =NbRecFound -> 4483 | W5: http://people.highline.edu/mgirvin/ExcelIsFun.htm
A7: 0 | D7: Channel | E7: PlayList | F7: Title
A8: Found | D8: =IF(ROWS($D$8:$D8)+ScrollValue>NbRecFound,"",INDEX(TblLibrary[[Channel]:[xlsEmbeddedLink]],MATCH(ROWS($D$8:$D8)+ScrollValue,TblLibrary[Selection]),COLUMNS($D8:D8))) -> MrExcel | E8: =IF(ROWS($D$8:$D8)+ScrollValue>NbRecFound,"",INDEX(TblLibrary[[Channel]:[xlsEmbeddedLink]],MATCH(ROWS($D$8:$D8)+ScrollValue,TblLibrary[Selection]),COLUMNS($D8:E8))) -> "Don't Fear The Spreadsheet" | F8: =IF(ROWS($D$8:$D8)+ScrollValue>NbRecFound,"",INDEX(TblLibrary[[Channel]:[xlsEmbeddedLink]],MATCH(ROWS($D$8:$D8)+ScrollValue,TblLibrary[Selection]),COLUMNS($D8:F8))) -> "Don't Fear The Spreadsheet" - How It All Began...Podcast #1560 | G8: =IF(ROWS($D$8:$D8)+ScrollValue>NbRecFound,"",INDEX(TblLibrary[[Channel]:[xlsEmbeddedLink]],MATCH(ROWS($D$8:$D8)+ScrollValue,TblLibrary[Selection]),COLUMNS($D8:G8))) -> http://www.youtube.com/watch?v=7xtrVlaYhz8&list=PLF8FB69F404D5FBB9&index=1 | H8: =IF(ROWS($D$8:$D8)+ScrollValue>NbRecFound,"",INDEX(TblLibrary[[Channel]:[xlsEmbeddedLink]],MATCH(ROWS($D$8:$D8)+ScrollValue,TblLibrary[Selection]),COLUMNS($D8:H8))) -> http://www.youtube.com/watch?v=7xtrVlaYhz8 | I8: =IF(ROWS($D$8:$D8)+ScrollValue>NbRecFound,"",INDEX(TblLibrary[[Channel]:[xlsEmbeddedLink]],MATCH(ROWS($D$8:$D8)+ScrollValue,TblLibrary[Selection]),COLUMNS($D8:I8))) -> http://www.youtube.com/v/7xtrVlaYhz8
A9: =COUNTIF(TblLibrary[Selected],1) -> 4483 | D9: =IF(ROWS($D$8:$D9)+ScrollValue>NbRecFound,"",INDEX(TblLibrary[[Channel]:[xlsEmbeddedLink]],MATCH(ROWS($D$8:$D9)+ScrollValue,TblLibrary[Selection]),COLUMNS($D9:D9))) -> MrExcel | E9: =IF(ROWS($D$8:$D9)+ScrollValue>NbRecFound,"",INDEX(TblLibrary[[Channel]:[xlsEmbeddedLink]],MATCH(ROWS($D$8:$D9)+ScrollValue,TblLibrary[Selection]),COLUMNS($D9:E9))) -> "Don't Fear The Spreadsheet" | F9: =IF(ROWS($D$8:$D9)+ScrollValue>NbRecFound,"",INDEX(TblLibrary[[Channel]:[xlsEmbeddedLink]],MATCH(ROWS($D$8:$D9)+ScrollValue,TblLibrary[Selection]),COLUMNS($D9:F9))) -> "Don't Fear The Spreadsheet" - How It All Began...Podcast #1560 | G9: =IF(ROWS($D$8:$D9)+ScrollValue>NbRecFound,"",INDEX(TblLibrary[[Channel]:[xlsEmbeddedLink]],MATCH(ROWS($D$8:$D9)+ScrollValue,TblLibrary[Selection]),COLUMNS($D9:G9))) -> http://www.youtube.com/watch?v=7xtrVlaYhz8&list=PLF8FB69F404D5FBB9&index=2 | H9: =IF(ROWS($D$8:$D9)+ScrollValue>NbRecFound,"",INDEX(TblLibrary[[Channel]:[xlsEmbeddedLink]],MATCH(ROWS($D$8:$D9)+ScrollValue,TblLibrary[Selection]),COLUMNS($D9:H9))) -> http://www.youtube.com/watch?v=7xtrVlaYhz8 | I9: =IF(ROWS($D$8:$D9)+ScrollValue>NbRecFound,"",INDEX(TblLibrary[[Channel]:[xlsEmbeddedLink]],MATCH(ROWS($D$8:$D9)+ScrollValue,TblLibrary[Selection]),COLUMNS($D9:I9))) -> http://www.youtube.com/v/7xtrVlaYhz8
D10: =IF(ROWS($D$8:$D10)+ScrollValue>NbRecFound,"",INDEX(TblLibrary[[Channel]:[xlsEmbeddedLink]],MATCH(ROWS($D$8:$D10)+ScrollValue,TblLibrary[Selection]),COLUMNS($D10:D10))) -> MrExcel | E10: =IF(ROWS($D$8:$D10)+ScrollValue>NbRecFound,"",INDEX(TblLibrary[[Channel]:[xlsEmbeddedLink]],MATCH(ROWS($D$8:$D10)+ScrollValue,TblLibrary[Selection]),COLUMNS($D10:E10))) -> "Don't Fear The Spreadsheet" | F10: =IF(ROWS($D$8:$D10)+ScrollValue>NbRecFound,"",INDEX(TblLibrary[[Channel]:[xlsEmbeddedLink]],MATCH(ROWS($D$8:$D10)+ScrollValue,TblLibrary[Selection]),COLUMNS($D10:F10))) -> "Don't Fear The Spreadsheet" - 12-13 Becomes 13-Dec?: Podcast #1561 | G10: =IF(ROWS($D$8:$D10)+ScrollValue>NbRecFound,"",INDEX(TblLibrary[[Channel]:[xlsEmbeddedLink]],MATCH(ROWS($D$8:$D10)+ScrollValue,TblLibrary[Selection]),COLUMNS($D10:G10))) -> http://www.youtube.com/watch?v=ljBGlcHHKbo&list=PLF8FB69F404D5FBB9 | H10: =IF(ROWS($D$8:$D10)+ScrollValue>NbRecFound,"",INDEX(TblLibrary[[Channel]:[xlsEmbeddedLink]],MATCH(ROWS($D$8:$D10)+ScrollValue,TblLibrary[Selection]),COLUMNS($D10:H10))) -> http://www.youtube.com/watch?v=ljBGlcHHKbo | I10: =IF(ROWS($D$8:$D10)+ScrollValue>NbRecFound,"",INDEX(TblLibrary[[Channel]:[xlsEmbeddedLink]],MATCH(ROWS($D$8:$D10)+ScrollValue,TblLibrary[Selection]),COLUMNS($D10:I10))) -> http://www.youtube.com/v/ljBGlcHHKbo
D11: =IF(ROWS($D$8:$D11)+ScrollValue>NbRecFound,"",INDEX(TblLibrary[[Channel]:[xlsEmbeddedLink]],MATCH(ROWS($D$8:$D11)+ScrollValue,TblLibrary[Selection]),COLUMNS($D11:D11))) -> MrExcel | E11: =IF(ROWS($D$8:$D11)+ScrollValue>NbRecFound,"",INDEX(TblLibrary[[Channel]:[xlsEmbeddedLink]],MATCH(ROWS($D$8:$D11)+ScrollValue,TblLibrary[Selection]),COLUMNS($D11:E11))) -> "Don't Fear The Spreadsheet" | F11: =IF(ROWS($D$8:$D11)+ScrollValue>NbRecFound,"",INDEX(TblLibrary[[Channel]:[xlsEmbeddedLink]],MATCH(ROWS($D$8:$D11)+ScrollValue,TblLibrary[Selection]),COLUMNS($D11:F11))) -> "Don't Fear The Spreadsheet" - The Corner of My Selection Isn't Selected!: Podcast #1563 | G11: =IF(ROWS($D$8:$D11)+ScrollValue>NbRecFound,"",INDEX(TblLibrary[[Channel]:[xlsEmbeddedLink]],MATCH(ROWS($D$8:$D11)+ScrollValue,TblLibrary[Selection]),COLUMNS($D11:G11))) -> http://www.youtube.com/watch?v=TbMit_Rm6Q8&list=PLF8FB69F404D5FBB9 | H11: =IF(ROWS($D$8:$D11)+ScrollValue>NbRecFound,"",INDEX(TblLibrary[[Channel]:[xlsEmbeddedLink]],MATCH(ROWS($D$8:$D11)+ScrollValue,TblLibrary[Selection]),COLUMNS($D11:H11))) -> http://www.youtube.com/watch?v=TbMit_Rm6Q8 | I11: =IF(ROWS($D$8:$D11)+ScrollValue>NbRecFound,"",INDEX(TblLibrary[[Channel]:[xlsEmbeddedLink]],MATCH(ROWS($D$8:$D11)+ScrollValue,TblLibrary[Selection]),COLUMNS($D11:I11))) -> http://www.youtube.com/v/TbMit_Rm6Q8
D12: =IF(ROWS($D$8:$D12)+ScrollValue>NbRecFound,"",INDEX(TblLibrary[[Channel]:[xlsEmbeddedLink]],MATCH(ROWS($D$8:$D12)+ScrollValue,TblLibrary[Selection]),COLUMNS($D12:D12))) -> MrExcel | E12: =IF(ROWS($D$8:$D12)+ScrollValue>NbRecFound,"",INDEX(TblLibrary[[Channel]:[xlsEmbeddedLink]],MATCH(ROWS($D$8:$D12)+ScrollValue,TblLibrary[Selection]),COLUMNS($D12:E12))) -> "Don't Fear The Spreadsheet" | F12: =IF(ROWS($D$8:$D12)+ScrollValue>NbRecFound,"",INDEX(TblLibrary[[Channel]:[xlsEmbeddedLink]],MATCH(ROWS($D$8:$D12)+ScrollValue,TblLibrary[Selection]),COLUMNS($D12:F12))) -> "Don't Fear The Spreadsheet" - Freeze Panes in Excel: Podcast #1565 | G12: =IF(ROWS($D$8:$D12)+ScrollValue>NbRecFound,"",INDEX(TblLibrary[[Channel]:[xlsEmbeddedLink]],MATCH(ROWS($D$8:$D12)+ScrollValue,TblLibrary[Selection]),COLUMNS($D12:G12))) -> http://www.youtube.com/watch?v=Fd5AShFOTQ8&list=PLF8FB69F404D5FBB9 | H12: =IF(ROWS($D$8:$D12)+ScrollValue>NbRecFound,"",INDEX(TblLibrary[[Channel]:[xlsEmbeddedLink]],MATCH(ROWS($D$8:$D12)+ScrollValue,TblLibrary[Selection]),COLUMNS($D12:H12))) -> http://www.youtube.com/watch?v=Fd5AShFOTQ8 | I12: =IF(ROWS($D$8:$D12)+ScrollValue>NbRecFound,"",INDEX(TblLibrary[[Channel]:[xlsEmbeddedLink]],MATCH(ROWS($D$8:$D12)+ScrollValue,TblLibrary[Selection]),COLUMNS($D12:I12))) -> http://www.youtube.com/v/Fd5AShFOTQ8
D13: =IF(ROWS($D$8:$D13)+ScrollValue>NbRecFound,"",INDEX(TblLibrary[[Channel]:[xlsEmbeddedLink]],MATCH(ROWS($D$8:$D13)+ScrollValue,TblLibrary[Selection]),COLUMNS($D13:D13))) -> MrExcel | E13: =IF(ROWS($D$8:$D13)+ScrollValue>NbRecFound,"",INDEX(TblLibrary[[Channel]:[xlsEmbeddedLink]],MATCH(ROWS($D$8:$D13)+ScrollValue,TblLibrary[Selection]),COLUMNS($D13:E13))) -> "Don't Fear The Spreadsheet" | F13: =IF(ROWS($D$8:$D13)+ScrollValue>NbRecFound,"",INDEX(TblLibrary[[Channel]:[xlsEmbeddedLink]],MATCH(ROWS($D$8:$D13)+ScrollValue,TblLibrary[Selection]),COLUMNS($D13:F13))) -> "Don't Fear The Spreadsheet" - Print Report: Podcast #1569 | G13: =IF(ROWS($D$8:$D13)+ScrollValue>NbRecFound,"",INDEX(TblLibrary[[Channel]:[xlsEmbeddedLink]],MATCH(ROWS($D$8:$D13)+ScrollValue,TblLibrary[Selection]),COLUMNS($D13:G13))) -> http://www.youtube.com/watch?v=VuPrjPS_NS8&list=PLF8FB69F404D5FBB9 | H13: =IF(ROWS($D$8:$D13)+ScrollValue>NbRecFound,"",INDEX(TblLibrary[[Channel]:[xlsEmbeddedLink]],MATCH(ROWS($D$8:$D13)+ScrollValue,TblLibrary[Selection]),COLUMNS($D13:H13))) -> http://www.youtube.com/watch?v=VuPrjPS_NS8 | I13: =IF(ROWS($D$8:$D13)+ScrollValue>NbRecFound,"",INDEX(TblLibrary[[Channel]:[xlsEmbeddedLink]],MATCH(ROWS($D$8:$D13)+ScrollValue,TblLibrary[Selection]),COLUMNS($D13:I13))) -> http://www.youtube.com/v/VuPrjPS_NS8
D14: =IF(ROWS($D$8:$D14)+ScrollValue>NbRecFound,"",INDEX(TblLibrary[[Channel]:[xlsEmbeddedLink]],MATCH(ROWS($D$8:$D14)+ScrollValue,TblLibrary[Selection]),COLUMNS($D14:D14))) -> MrExcel | E14: =IF(ROWS($D$8:$D14)+ScrollValue>NbRecFound,"",INDEX(TblLibrary[[Channel]:[xlsEmbeddedLink]],MATCH(ROWS($D$8:$D14)+ScrollValue,TblLibrary[Selection]),COLUMNS($D14:E14))) -> "Don't Fear The Spreadsheet" | F14: =IF(ROWS($D$8:$D14)+ScrollValue>NbRecFound,"",INDEX(TblLibrary[[Channel]:[xlsEmbeddedLink]],MATCH(ROWS($D$8:$D14)+ScrollValue,TblLibrary[Selection]),COLUMNS($D14:F14))) -> Don't Fear The Spreadsheet - "Printer's Tour": Podcast #1580 | G14: =IF(ROWS($D$8:$D14)+ScrollValue>NbRecFound,"",INDEX(TblLibrary[[Channel]:[xlsEmbeddedLink]],MATCH(ROWS($D$8:$D14)+ScrollValue,TblLibrary[Selection]),COLUMNS($D14:G14))) -> http://www.youtube.com/watch?v=pBsbPn-S64g&list=PLF8FB69F404D5FBB9 | H14: =IF(ROWS($D$8:$D14)+ScrollValue>NbRecFound,"",INDEX(TblLibrary[[Channel]:[xlsEmbeddedLink]],MATCH(ROWS($D$8:$D14)+ScrollValue,TblLibrary[Selection]),COLUMNS($D14:H14))) -> http://www.youtube.com/watch?v=pBsbPn-S64g | I14: =IF(ROWS($D$8:$D14)+ScrollValue>NbRecFound,"",INDEX(TblLibrary[[Channel]:[xlsEmbeddedLink]],MATCH(ROWS($D$8:$D14)+ScrollValue,TblLibrary[Selection]),COLUMNS($D14:I14))) -> http://www.youtube.com/v/pBsbPn-S64g
D15: =IF(ROWS($D$8:$D15)+ScrollValue>NbRecFound,"",INDEX(TblLibrary[[Channel]:[xlsEmbeddedLink]],MATCH(ROWS($D$8:$D15)+ScrollValue,TblLibrary[Selection]),COLUMNS($D15:D15))) -> MrExcel | E15: =IF(ROWS($D$8:$D15)+ScrollValue>NbRecFound,"",INDEX(TblLibrary[[Channel]:[xlsEmbeddedLink]],MATCH(ROWS($D$8:$D15)+ScrollValue,TblLibrary[Selection]),COLUMNS($D15:E15))) -> "Don't Fear The Spreadsheet" | F15: =IF(ROWS($D$8:$D15)+ScrollValue>NbRecFound,"",INDEX(TblLibrary[[Channel]:[xlsEmbeddedLink]],MATCH(ROWS($D$8:$D15)+ScrollValue,TblLibrary[Selection]),COLUMNS($D15:F15))) -> "Don't Fear The Spreadsheet" - The Dollars and Cents of It: Podcast #1578 | G15: =IF(ROWS($D$8:$D15)+ScrollValue>NbRecFound,"",INDEX(TblLibrary[[Channel]:[xlsEmbeddedLink]],MATCH(ROWS($D$8:$D15)+ScrollValue,TblLibrary[Selection]),COLUMNS($D15:G15))) -> http://www.youtube.com/watch?v=pmkQjmvgJO0&list=PLF8FB69F404D5FBB9 | H15: =IF(ROWS($D$8:$D15)+ScrollValue>NbRecFound,"",INDEX(TblLibrary[[Channel]:[xlsEmbeddedLink]],MATCH(ROWS($D$8:$D15)+ScrollValue,TblLibrary[Selection]),COLUMNS($D15:H15))) -> http://www.youtube.com/watch?v=pmkQjmvgJO0 | I15: =IF(ROWS($D$8:$D15)+ScrollValue>NbRecFound,"",INDEX(TblLibrary[[Channel]:[xlsEmbeddedLink]],MATCH(ROWS($D$8:$D15)+ScrollValue,TblLibrary[Selection]),COLUMNS($D15:I15))) -> http://www.youtube.com/v/pmkQjmvgJO0
D16: =IF(ROWS($D$8:$D16)+ScrollValue>NbRecFound,"",INDEX(TblLibrary[[Channel]:[xlsEmbeddedLink]],MATCH(ROWS($D$8:$D16)+ScrollValue,TblLibrary[Selection]),COLUMNS($D16:D16))) -> MrExcel | E16: =IF(ROWS($D$8:$D16)+ScrollValue>NbRecFound,"",INDEX(TblLibrary[[Channel]:[xlsEmbeddedLink]],MATCH(ROWS($D$8:$D16)+ScrollValue,TblLibrary[Selection]),COLUMNS($D16:E16))) -> "Don't Fear The Spreadsheet" | F16: =IF(ROWS($D$8:$D16)+ScrollValue>NbRecFound,"",INDEX(TblLibrary[[Channel]:[xlsEmbeddedLink]],MATCH(ROWS($D$8:$D16)+ScrollValue,TblLibrary[Selection]),COLUMNS($D16:F16))) -> "Don't Fear The Spreadsheet" - All Of My Numbers Are Corrupt!: Podcast #1574 | G16: =IF(ROWS($D$8:$D16)+ScrollValue>NbRecFound,"",INDEX(TblLibrary[[Channel]:[xlsEmbeddedLink]],MATCH(ROWS($D$8:$D16)+ScrollValue,TblLibrary[Selection]),COLUMNS($D16:G16))) -> http://www.youtube.com/watch?v=BotCLxdtUms&list=PLF8FB69F404D5FBB9 | H16: =IF(ROWS($D$8:$D16)+ScrollValue>NbRecFound,"",INDEX(TblLibrary[[Channel]:[xlsEmbeddedLink]],MATCH(ROWS($D$8:$D16)+ScrollValue,TblLibrary[Selection]),COLUMNS($D16:H16))) -> http://www.youtube.com/watch?v=BotCLxdtUms | I16: =IF(ROWS($D$8:$D16)+ScrollValue>NbRecFound,"",INDEX(TblLibrary[[Channel]:[xlsEmbeddedLink]],MATCH(ROWS($D$8:$D16)+ScrollValue,TblLibrary[Selection]),COLUMNS($D16:I16))) -> http://www.youtube.com/v/BotCLxdtUms
D17: =IF(ROWS($D$8:$D17)+ScrollValue>NbRecFound,"",INDEX(TblLibrary[[Channel]:[xlsEmbeddedLink]],MATCH(ROWS($D$8:$D17)+ScrollValue,TblLibrary[Selection]),COLUMNS($D17:D17))) -> MrExcel | E17: =IF(ROWS($D$8:$D17)+ScrollValue>NbRecFound,"",INDEX(TblLibrary[[Channel]:[xlsEmbeddedLink]],MATCH(ROWS($D$8:$D17)+ScrollValue,TblLibrary[Selection]),COLUMNS($D17:E17))) -> "Don't Fear The Spreadsheet" | F17: =IF(ROWS($D$8:$D17)+ScrollValue>NbRecFound,"",INDEX(TblLibrary[[Channel]:[xlsEmbeddedLink]],MATCH(ROWS($D$8:$D17)+ScrollValue,TblLibrary[Selection]),COLUMNS($D17:F17))) -> "Don't Fear The Spreadsheet" - Insert Row into Existing Data: Podcast #1586 | G17: =IF(ROWS($D$8:$D17)+ScrollValue>NbRecFound,"",INDEX(TblLibrary[[Channel]:[xlsEmbeddedLink]],MATCH(ROWS($D$8:$D17)+ScrollValue,TblLibrary[Selection]),COLUMNS($D17:G17))) -> http://www.youtube.com/watch?v=uhFvdmpCQW0&list=PLF8FB69F404D5FBB9 | H17: =IF(ROWS($D$8:$D17)+ScrollValue>NbRecFound,"",INDEX(TblLibrary[[Channel]:[xlsEmbeddedLink]],MATCH(ROWS($D$8:$D17)+ScrollValue,TblLibrary[Selection]),COLUMNS($D17:H17))) -> http://www.youtube.com/watch?v=uhFvdmpCQW0 | I17: =IF(ROWS($D$8:$D17)+ScrollValue>NbRecFound,"",INDEX(TblLibrary[[Channel]:[xlsEmbeddedLink]],MATCH(ROWS($D$8:$D17)+ScrollValue,TblLibrary[Selection]),COLUMNS($D17:I17))) -> http://www.youtube.com/v/uhFvdmpCQW0
D20: Channel | E20: PlayList | F20: Title | G20: LinkWithPlaylist | H20: LinkToVideo | I20: xlsEmbeddedLink | J20: Selected | K20: Selection
D21: MrExcel | E21: "Don't Fear The Spreadsheet" | F21: "Don't Fear The Spreadsheet" - How It All Began...Podcast #1560 | G21: http://www.youtube.com/watch?v=7xtrVlaYhz8&list=PLF8FB69F404D5FBB9&index=1 | H21: =LEFT(TblLibrary[[#This Row],[LinkWithPlaylist]],FIND("&",TblLibrary[[#This Row],[LinkWithPlaylist]])-1) -> http://www.youtube.com/watch?v=7xtrVlaYhz8 | I21: =SUBSTITUTE(SUBSTITUTE(TblLibrary[[#This Row],[LinkToVideo]],"watch?",""),"v=","v/") -> http://www.youtube.com/v/7xtrVlaYhz8 | J21: =IF(ISERROR(SEARCH(KeyWord,TblLibrary[[#This Row],[Title]])),0,1) -> 1 | K21: =IF(TblLibrary[[#This Row],[Selected]]=1,MAX($K$20:K20)+1,"") -> 1
D22: MrExcel | E22: "Don't Fear The Spreadsheet" | F22: "Don't Fear The Spreadsheet" - How It All Began...Podcast #1560 | G22: http://www.youtube.com/watch?v=7xtrVlaYhz8&list=PLF8FB69F404D5FBB9&index=2 | H22: =LEFT(TblLibrary[[#This Row],[LinkWithPlaylist]],FIND("&",TblLibrary[[#This Row],[LinkWithPlaylist]])-1) -> http://www.youtube.com/watch?v=7xtrVlaYhz8 | I22: =SUBSTITUTE(SUBSTITUTE(TblLibrary[[#This Row],[LinkToVideo]],"watch?",""),"v=","v/") -> http://www.youtube.com/v/7xtrVlaYhz8 | J22: =IF(ISERROR(SEARCH(KeyWord,TblLibrary[[#This Row],[Title]])),0,1) -> 1 | K22: =IF(TblLibrary[[#This Row],[Selected]]=1,MAX($K$20:K21)+1,"") -> 2
D23: MrExcel | E23: "Don't Fear The Spreadsheet" | F23: "Don't Fear The Spreadsheet" - 12-13 Becomes 13-Dec?: Podcast #1561 | G23: http://www.youtube.com/watch?v=ljBGlcHHKbo&list=PLF8FB69F404D5FBB9 | H23: =LEFT(TblLibrary[[#This Row],[LinkWithPlaylist]],FIND("&",TblLibrary[[#This Row],[LinkWithPlaylist]])-1) -> http://www.youtube.com/watch?v=ljBGlcHHKbo | I23: =SUBSTITUTE(SUBSTITUTE(TblLibrary[[#This Row],[LinkToVideo]],"watch?",""),"v=","v/") -> http://www.youtube.com/v/ljBGlcHHKbo | J23: =IF(ISERROR(SEARCH(KeyWord,TblLibrary[[#This Row],[Title]])),0,1) -> 1 | K23: =IF(TblLibrary[[#This Row],[Selected]]=1,MAX($K$20:K22)+1,"") -> 3
D24: MrExcel | E24: "Don't Fear The Spreadsheet" | F24: "Don't Fear The Spreadsheet" - The Corner of My Selection Isn't Selected!: Podcast #1563 | G24: http://www.youtube.com/watch?v=TbMit_Rm6Q8&list=PLF8FB69F404D5FBB9 | H24: =LEFT(TblLibrary[[#This Row],[LinkWithPlaylist]],FIND("&",TblLibrary[[#This Row],[LinkWithPlaylist]])-1) -> http://www.youtube.com/watch?v=TbMit_Rm6Q8 | I24: =SUBSTITUTE(SUBSTITUTE(TblLibrary[[#This Row],[LinkToVideo]],"watch?",""),"v=","v/") -> http://www.youtube.com/v/TbMit_Rm6Q8 | J24: =IF(ISERROR(SEARCH(KeyWord,TblLibrary[[#This Row],[Title]])),0,1) -> 1 | K24: =IF(TblLibrary[[#This Row],[Selected]]=1,MAX($K$20:K23)+1,"") -> 4
D25: MrExcel | E25: "Don't Fear The Spreadsheet" | F25: "Don't Fear The Spreadsheet" - Freeze Panes in Excel: Podcast #1565 | G25: http://www.youtube.com/watch?v=Fd5AShFOTQ8&list=PLF8FB69F404D5FBB9 | H25: =LEFT(TblLibrary[[#This Row],[LinkWithPlaylist]],FIND("&",TblLibrary[[#This Row],[LinkWithPlaylist]])-1) -> http://www.youtube.com/watch?v=Fd5AShFOTQ8 | I25: =SUBSTITUTE(SUBSTITUTE(TblLibrary[[#This Row],[LinkToVideo]],"watch?",""),"v=","v/") -> http://www.youtube.com/v/Fd5AShFOTQ8 | J25: =IF(ISERROR(SEARCH(KeyWord,TblLibrary[[#This Row],[Title]])),0,1) -> 1 | K25: =IF(TblLibrary[[#This Row],[Selected]]=1,MAX($K$20:K24)+1,"") -> 5
D26: MrExcel | E26: "Don't Fear The Spreadsheet" | F26: "Don't Fear The Spreadsheet" - Print Report: Podcast #1569 | G26: http://www.youtube.com/watch?v=VuPrjPS_NS8&list=PLF8FB69F404D5FBB9 | H26: =LEFT(TblLibrary[[#This Row],[LinkWithPlaylist]],FIND("&",TblLibrary[[#This Row],[LinkWithPlaylist]])-1) -> http://www.youtube.com/watch?v=VuPrjPS_NS8 | I26: =SUBSTITUTE(SUBSTITUTE(TblLibrary[[#This Row],[LinkToVideo]],"watch?",""),"v=","v/") -> http://www.youtube.com/v/VuPrjPS_NS8 | J26: =IF(ISERROR(SEARCH(KeyWord,TblLibrary[[#This Row],[Title]])),0,1) -> 1 | K26: =IF(TblLibrary[[#This Row],[Selected]]=1,MAX($K$20:K25)+1,"") -> 6
D27: MrExcel | E27: "Don't Fear The Spreadsheet" | F27: Don't Fear The Spreadsheet - "Printer's Tour": Podcast #1580 | G27: http://www.youtube.com/watch?v=pBsbPn-S64g&list=PLF8FB69F404D5FBB9 | H27: =LEFT(TblLibrary[[#This Row],[LinkWithPlaylist]],FIND("&",TblLibrary[[#This Row],[LinkWithPlaylist]])-1) -> http://www.youtube.com/watch?v=pBsbPn-S64g | I27: =SUBSTITUTE(SUBSTITUTE(TblLibrary[[#This Row],[LinkToVideo]],"watch?",""),"v=","v/") -> http://www.youtube.com/v/pBsbPn-S64g | J27: =IF(ISERROR(SEARCH(KeyWord,TblLibrary[[#This Row],[Title]])),0,1) -> 1 | K27: =IF(TblLibrary[[#This Row],[Selected]]=1,MAX($K$20:K26)+1,"") -> 7
D28: MrExcel | E28: "Don't Fear The Spreadsheet" | F28: "Don't Fear The Spreadsheet" - The Dollars and Cents of It: Podcast #1578 | G28: http://www.youtube.com/watch?v=pmkQjmvgJO0&list=PLF8FB69F404D5FBB9 | H28: =LEFT(TblLibrary[[#This Row],[LinkWithPlaylist]],FIND("&",TblLibrary[[#This Row],[LinkWithPlaylist]])-1) -> http://www.youtube.com/watch?v=pmkQjmvgJO0 | I28: =SUBSTITUTE(SUBSTITUTE(TblLibrary[[#This Row],[LinkToVideo]],"watch?",""),"v=","v/") -> http://www.youtube.com/v/pmkQjmvgJO0 | J28: =IF(ISERROR(SEARCH(KeyWord,TblLibrary[[#This Row],[Title]])),0,1) -> 1 | K28: =IF(TblLibrary[[#This Row],[Selected]]=1,MAX($K$20:K27)+1,"") -> 8
D29: MrExcel | E29: "Don't Fear The Spreadsheet" | F29: "Don't Fear The Spreadsheet" - All Of My Numbers Are Corrupt!: Podcast #1574 | G29: http://www.youtube.com/watch?v=BotCLxdtUms&list=PLF8FB69F404D5FBB9 | H29: =LEFT(TblLibrary[[#This Row],[LinkWithPlaylist]],FIND("&",TblLibrary[[#This Row],[LinkWithPlaylist]])-1) -> http://www.youtube.com/watch?v=BotCLxdtUms | I29: =SUBSTITUTE(SUBSTITUTE(TblLibrary[[#This Row],[LinkToVideo]],"watch?",""),"v=","v/") -> http://www.youtube.com/v/BotCLxdtUms | J29: =IF(ISERROR(SEARCH(KeyWord,TblLibrary[[#This Row],[Title]])),0,1) -> 1 | K29: =IF(TblLibrary[[#This Row],[Selected]]=1,MAX($K$20:K28)+1,"") -> 9
D30: MrExcel | E30: "Don't Fear The Spreadsheet" | F30: "Don't Fear The Spreadsheet" - Insert Row into Existing Data: Podcast #1586 | G30: http://www.youtube.com/watch?v=uhFvdmpCQW0&list=PLF8FB69F404D5FBB9 | H30: =LEFT(TblLibrary[[#This Row],[LinkWithPlaylist]],FIND("&",TblLibrary[[#This Row],[LinkWithPlaylist]])-1) -> http://www.youtube.com/watch?v=uhFvdmpCQW0 | I30: =SUBSTITUTE(SUBSTITUTE(TblLibrary[[#This Row],[LinkToVideo]],"watch?",""),"v=","v/") -> http://www.youtube.com/v/uhFvdmpCQW0 | J30: =IF(ISERROR(SEARCH(KeyWord,TblLibrary[[#This Row],[Title]])),0,1) -> 1 | K30: =IF(TblLibrary[[#This Row],[Selected]]=1,MAX($K$20:K29)+1,"") -> 10
D31: MrExcel | E31: "Don't Fear The Spreadsheet" | F31: "Don't Fear The Spreadsheet" - A Great Story, Really!: Podcast #1584 | G31: http://www.youtube.com/watch?v=alflzLIVkms&list=PLF8FB69F404D5FBB9 | H31: =LEFT(TblLibrary[[#This Row],[LinkWithPlaylist]],FIND("&",TblLibrary[[#This Row],[LinkWithPlaylist]])-1) -> http://www.youtube.com/watch?v=alflzLIVkms | I31: =SUBSTITUTE(SUBSTITUTE(TblLibrary[[#This Row],[LinkToVideo]],"watch?",""),"v=","v/") -> http://www.youtube.com/v/alflzLIVkms | J31: =IF(ISERROR(SEARCH(KeyWord,TblLibrary[[#This Row],[Title]])),0,1) -> 1 | K31: =IF(TblLibrary[[#This Row],[Selected]]=1,MAX($K$20:K30)+1,"") -> 11
D32: MrExcel | E32: "Don't Fear The Spreadsheet" | F32: "Don't Fear The Spreadsheet" - Build A Formula: Podcast #1594 | G32: http://www.youtube.com/watch?v=04DgyveQLMU&list=PLF8FB69F404D5FBB9 | H32: =LEFT(TblLibrary[[#This Row],[LinkWithPlaylist]],FIND("&",TblLibrary[[#This Row],[LinkWithPlaylist]])-1) -> http://www.youtube.com/watch?v=04DgyveQLMU | I32: =SUBSTITUTE(SUBSTITUTE(TblLibrary[[#This Row],[LinkToVideo]],"watch?",""),"v=","v/") -> http://www.youtube.com/v/04DgyveQLMU | J32: =IF(ISERROR(SEARCH(KeyWord,TblLibrary[[#This Row],[Title]])),0,1) -> 1 | K32: =IF(TblLibrary[[#This Row],[Selected]]=1,MAX($K$20:K31)+1,"") -> 12
D33: MrExcel | E33: "Don't Fear The Spreadsheet" | F33: "Don't Fear The Spreadsheet" - Selecting -Or Not Selecting- Hyperlinks in Excel: Podcast #1601 | G33: http://www.youtube.com/watch?v=w2M7KY_72MY&list=PLF8FB69F404D5FBB9 | H33: =LEFT(TblLibrary[[#This Row],[LinkWithPlaylist]],FIND("&",TblLibrary[[#This Row],[LinkWithPlaylist]])-1) -> http://www.youtube.com/watch?v=w2M7KY_72MY | I33: =SUBSTITUTE(SUBSTITUTE(TblLibrary[[#This Row],[LinkToVideo]],"watch?",""),"v=","v/") -> http://www.youtube.com/v/w2M7KY_72MY | J33: =IF(ISERROR(SEARCH(KeyWord,TblLibrary[[#This Row],[Title]])),0,1) -> 1 | K33: =IF(TblLibrary[[#This Row],[Selected]]=1,MAX($K$20:K32)+1,"") -> 13
D34: MrExcel | E34: "Don't Fear The Spreadsheet" | F34: "Don't Fear The Spreadsheet" - Hide or Unhide Columns: Podcast #1603 | G34: http://www.youtube.com/watch?v=fuXPOyG7GCs&list=PLF8FB69F404D5FBB9 | H34: =LEFT(TblLibrary[[#This Row],[LinkWithPlaylist]],FIND("&",TblLibrary[[#This Row],[LinkWithPlaylist]])-1) -> http://www.youtube.com/watch?v=fuXPOyG7GCs | I34: =SUBSTITUTE(SUBSTITUTE(TblLibrary[[#This Row],[LinkToVideo]],"watch?",""),"v=","v/") -> http://www.youtube.com/v/fuXPOyG7GCs | J34: =IF(ISERROR(SEARCH(KeyWord,TblLibrary[[#This Row],[Title]])),0,1) -> 1 | K34: =IF(TblLibrary[[#This Row],[Selected]]=1,MAX($K$20:K33)+1,"") -> 14
D35: MrExcel | E35: "Don't Fear The Spreadsheet" | F35: Don't Fear The Spreadsheet' - Every Way To Copy a Formula Down: Podcast #1604 | G35: http://www.youtube.com/watch?v=hVfa223d6Io&list=PLF8FB69F404D5FBB9 | H35: =LEFT(TblLibrary[[#This Row],[LinkWithPlaylist]],FIND("&",TblLibrary[[#This Row],[LinkWithPlaylist]])-1) -> http://www.youtube.com/watch?v=hVfa223d6Io | I35: =SUBSTITUTE(SUBSTITUTE(TblLibrary[[#This Row],[LinkToVideo]],"watch?",""),"v=","v/") -> http://www.youtube.com/v/hVfa223d6Io | J35: =IF(ISERROR(SEARCH(KeyWord,TblLibrary[[#This Row],[Title]])),0,1) -> 1 | K35: =IF(TblLibrary[[#This Row],[Selected]]=1,MAX($K$20:K34)+1,"") -> 15
D36: MrExcel | E36: "Don't Fear The Spreadsheet" | F36: "Don't Fear The Spreadsheet" - Read Only and More: Podcast #1605 | G36: http://www.youtube.com/watch?v=cTZp9SRbJxk&list=PLF8FB69F404D5FBB9 | H36: =LEFT(TblLibrary[[#This Row],[LinkWithPlaylist]],FIND("&",TblLibrary[[#This Row],[LinkWithPlaylist]])-1) -> http://www.youtube.com/watch?v=cTZp9SRbJxk | I36: =SUBSTITUTE(SUBSTITUTE(TblLibrary[[#This Row],[LinkToVideo]],"watch?",""),"v=","v/") -> http://www.youtube.com/v/cTZp9SRbJxk | J36: =IF(ISERROR(SEARCH(KeyWord,TblLibrary[[#This Row],[Title]])),0,1) -> 1 | K36: =IF(TblLibrary[[#This Row],[Selected]]=1,MAX($K$20:K35)+1,"") -> 16
D37: MrExcel | E37: "Don't Fear The Spreadsheet" | F37: "Don't Fear The Spreadsheet" - Getting Excel Data into A Chart: Podcast #1608 | G37: http://www.youtube.com/watch?v=RqSTvk03w9w&list=PLF8FB69F404D5FBB9 | H37: =LEFT(TblLibrary[[#This Row],[LinkWithPlaylist]],FIND("&",TblLibrary[[#This Row],[LinkWithPlaylist]])-1) -> http://www.youtube.com/watch?v=RqSTvk03w9w | I37: =SUBSTITUTE(SUBSTITUTE(TblLibrary[[#This Row],[LinkToVideo]],"watch?",""),"v=","v/") -> http://www.youtube.com/v/RqSTvk03w9w | J37: =IF(ISERROR(SEARCH(KeyWord,TblLibrary[[#This Row],[Title]])),0,1) -> 1 | K37: =IF(TblLibrary[[#This Row],[Selected]]=1,MAX($K$20:K36)+1,"") -> 17
D38: MrExcel | E38: "Don't Fear The Spreadsheet" | F38: "Don't Fear The Spreadsheet" - Import Text File to Excel: Podcast #1622 | G38: http://www.youtube.com/watch?v=poSMKM1jHrQ&list=PLF8FB69F404D5FBB9 | H38: =LEFT(TblLibrary[[#This Row],[LinkWithPlaylist]],FIND("&",TblLibrary[[#This Row],[LinkWithPlaylist]])-1) -> http://www.youtube.com/watch?v=poSMKM1jHrQ | I38: =SUBSTITUTE(SUBSTITUTE(TblLibrary[[#This Row],[LinkToVideo]],"watch?",""),"v=","v/") -> http://www.youtube.com/v/poSMKM1jHrQ | J38: =IF(ISERROR(SEARCH(KeyWord,TblLibrary[[#This Row],[Title]])),0,1) -> 1 | K38: =IF(TblLibrary[[#This Row],[Selected]]=1,MAX($K$20:K37)+1,"") -> 18
D39: MrExcel | E39: "Don't Fear The Spreadsheet" | F39: [Deleted Video] | G39: http://www.youtube.com/watch?v=BNQWKvKWzLk&list=PLF8FB69F404D5FBB9 | H39: =LEFT(TblLibrary[[#This Row],[LinkWithPlaylist]],FIND("&",TblLibrary[[#This Row],[LinkWithPlaylist]])-1) -> http://www.youtube.com/watch?v=BNQWKvKWzLk | I39: =SUBSTITUTE(SUBSTITUTE(TblLibrary[[#This Row],[LinkToVideo]],"watch?",""),"v=","v/") -> http://www.youtube.com/v/BNQWKvKWzLk | J39: =IF(ISERROR(SEARCH(KeyWord,TblLibrary[[#This Row],[Title]])),0,1) -> 1 | K39: =IF(TblLibrary[[#This Row],[Selected]]=1,MAX($K$20:K38)+1,"") -> 19
D40: MrExcel | E40: "Don't Fear The Spreadsheet" | F40: [Deleted Video] | G40: http://www.youtube.com/watch?v=6WhMSNAKHKM&list=PLF8FB69F404D5FBB9 | H40: =LEFT(TblLibrary[[#This Row],[LinkWithPlaylist]],FIND("&",TblLibrary[[#This Row],[LinkWithPlaylist]])-1) -> http://www.youtube.com/watch?v=6WhMSNAKHKM | I40: =SUBSTITUTE(SUBSTITUTE(TblLibrary[[#This Row],[LinkToVideo]],"watch?",""),"v=","v/") -> http://www.youtube.com/v/6WhMSNAKHKM | J40: =IF(ISERROR(SEARCH(KeyWord,TblLibrary[[#This Row],[Title]])),0,1) -> 1 | K40: =IF(TblLibrary[[#This Row],[Selected]]=1,MAX($K$20:K39)+1,"") -> 20
D41: MrExcel | E41: Array Formulas In Excel | F41: Learn Excel from MrExcel - "Count Even or Odd Cells": Podcast #1630 | G41: http://www.youtube.com/watch?v=HPktpY1xAH4&list=PL57F8BD04BB655B49 | H41: =LEFT(TblLibrary[[#This Row],[LinkWithPlaylist]],FIND("&",TblLibrary[[#This Row],[LinkWithPlaylist]])-1) -> http://www.youtube.com/watch?v=HPktpY1xAH4 | I41: =SUBSTITUTE(SUBSTITUTE(TblLibrary[[#This Row],[LinkToVideo]],"watch?",""),"v=","v/") -> http://www.youtube.com/v/HPktpY1xAH4 | J41: =IF(ISERROR(SEARCH(KeyWord,TblLibrary[[#This Row],[Title]])),0,1) -> 1 | K41: =IF(TblLibrary[[#This Row],[Selected]]=1,MAX($K$20:K40)+1,"") -> 21
D42: MrExcel | E42: Array Formulas In Excel | G42: http://get.adobe.com/flashplayer/ | H42: =LEFT(TblLibrary[[#This Row],[LinkWithPlaylist]],FIND("&",TblLibrary[[#This Row],[LinkWithPlaylist]])-1) ->  | I42: =SUBSTITUTE(SUBSTITUTE(TblLibrary[[#This Row],[LinkToVideo]],"watch?",""),"v=","v/") ->  | J42: =IF(ISERROR(SEARCH(KeyWord,TblLibrary[[#This Row],[Title]])),0,1) -> 0 | K42: =IF(TblLibrary[[#This Row],[Selected]]=1,MAX($K$20:K41)+1,"") -> 
D43: MrExcel | E43: Array Formulas In Excel | G43: http://www.youtube.com/user/bjele123?feature=watch | H43: =LEFT(TblLibrary[[#This Row],[LinkWithPlaylist]],FIND("&",TblLibrary[[#This Row],[LinkWithPlaylist]])-1) ->  | I43: =SUBSTITUTE(SUBSTITUTE(TblLibrary[[#This Row],[LinkToVideo]],"watch?",""),"v=","v/") ->  | J43: =IF(ISERROR(SEARCH(KeyWord,TblLibrary[[#This Row],[Title]])),0,1) -> 0 | K43: =IF(TblLibrary[[#This Row],[Selected]]=1,MAX($K$20:K42)+1,"") -> 
D44: MrExcel | E44: Array Formulas In Excel | G44: http://www.youtube.com/user/bjele123/videos | H44: =LEFT(TblLibrary[[#This Row],[LinkWithPlaylist]],FIND("&",TblLibrary[[#This Row],[LinkWithPlaylist]])-1) ->  | I44: =SUBSTITUTE(SUBSTITUTE(TblLibrary[[#This Row],[LinkToVideo]],"watch?",""),"v=","v/") ->  | J44: =IF(ISERROR(SEARCH(KeyWord,TblLibrary[[#This Row],[Title]])),0,1) -> 0 | K44: =IF(TblLibrary[[#This Row],[Selected]]=1,MAX($K$20:K43)+1,"") -> 
D45: MrExcel | E45: Array Formulas In Excel | F45: http://www.mrexcel.com/learn2010/LE2010.html | G45: http://www.mrexcel.com/learn2010/LE2010.html | H45: =LEFT(TblLibrary[[#This Row],[LinkWithPlaylist]],FIND("&",TblLibrary[[#This Row],[LinkWithPlaylist]])-1) ->  | I45: =SUBSTITUTE(SUBSTITUTE(TblLibrary[[#This Row],[LinkToVideo]],"watch?",""),"v=","v/") ->  | J45: =IF(ISERROR(SEARCH(KeyWord,TblLibrary[[#This Row],[Title]])),0,1) -> 1 | K45: =IF(TblLibrary[[#This Row],[Selected]]=1,MAX($K$20:K44)+1,"") -> 22
D46: MrExcel | E46: Charting Basics in Excel 2010 | F46: Dueling Excel - Chart Titles: Podcast #1409 | G46: http://www.youtube.com/watch?v=rEoW48D4fBU&list=PLE22224AE85F6589D | H46: =LEFT(TblLibrary[[#This Row],[LinkWithPlaylist]],FIND("&",TblLibrary[[#This Row],[LinkWithPlaylist]])-1) -> http://www.youtube.com/watch?v=rEoW48D4fBU | I46: =SUBSTITUTE(SUBSTITUTE(TblLibrary[[#This Row],[LinkToVideo]],"watch?",""),"v=","v/") -> http://www.youtube.com/v/rEoW48D4fBU | J46: =IF(ISERROR(SEARCH(KeyWord,TblLibrary[[#This Row],[Title]])),0,1) -> 1 | K46: =IF(TblLibrary[[#This Row],[Selected]]=1,MAX($K$20:K45)+1,"") -> 23
D47: MrExcel | E47: Charting Basics in Excel 2010 | F47: Learn Excel - Chart Title, Legend, Colors: Podcast #1408 | G47: http://www.youtube.com/watch?v=W4YA7RzsIZI&list=PLE22224AE85F6589D | H47: =LEFT(TblLibrary[[#This Row],[LinkWithPlaylist]],FIND("&",TblLibrary[[#This Row],[LinkWithPlaylist]])-1) -> http://www.youtube.com/watch?v=W4YA7RzsIZI | I47: =SUBSTITUTE(SUBSTITUTE(TblLibrary[[#This Row],[LinkToVideo]],"watch?",""),"v=","v/") -> http://www.youtube.com/v/W4YA7RzsIZI | J47: =IF(ISERROR(SEARCH(KeyWord,TblLibrary[[#This Row],[Title]])),0,1) -> 1 | K47: =IF(TblLibrary[[#This Row],[Selected]]=1,MAX($K$20:K46)+1,"") -> 24
D48: MrExcel | E48: Charting Basics in Excel 2010 | F48: Learn Excel - Change The Chart Scale: Podcast #1407 | G48: http://www.youtube.com/watch?v=GVekN70-qWI&list=PLE22224AE85F6589D | H48: =LEFT(TblLibrary[[#This Row],[LinkWithPlaylist]],FIND("&",TblLibrary[[#This Row],[LinkWithPlaylist]])-1) -> http://www.youtube.com/watch?v=GVekN70-qWI | I48: =SUBSTITUTE(SUBSTITUTE(TblLibrary[[#This Row],[LinkToVideo]],"watch?",""),"v=","v/") -> http://www.youtube.com/v/GVekN70-qWI | J48: =IF(ISERROR(SEARCH(KeyWord,TblLibrary[[#This Row],[Title]])),0,1) -> 1 | K48: =IF(TblLibrary[[#This Row],[Selected]]=1,MAX($K$20:K47)+1,"") -> 25
D49: MrExcel | E49: Charting Basics in Excel 2010 | F49: Learn Excel - Create The Chart: Podcast #1406 | G49: http://www.youtube.com/watch?v=wjE3top1Xnc&list=PLE22224AE85F6589D | H49: =LEFT(TblLibrary[[#This Row],[LinkWithPlaylist]],FIND("&",TblLibrary[[#This Row],[LinkWithPlaylist]])-1) -> http://www.youtube.com/watch?v=wjE3top1Xnc | I49: =SUBSTITUTE(SUBSTITUTE(TblLibrary[[#This Row],[LinkToVideo]],"watch?",""),"v=","v/") -> http://www.youtube.com/v/wjE3top1Xnc | J49: =IF(ISERROR(SEARCH(KeyWord,TblLibrary[[#This Row],[Title]])),0,1) -> 1 | K49: =IF(TblLibrary[[#This Row],[Selected]]=1,MAX($K$20:K48)+1,"") -> 26
D50: MrExcel | E50: Charting Basics in Excel 2010 | F50: Learn Excel - Set Up Data for Charting: Podcast #1405 | G50: http://www.youtube.com/watch?v=V2KK9gv1ApI&list=PLE22224AE85F6589D | H50: =LEFT(TblLibrary[[#This Row],[LinkWithPlaylist]],FIND("&",TblLibrary[[#This Row],[LinkWithPlaylist]])-1) -> http://www.youtube.com/watch?v=V2KK9gv1ApI | I50: =SUBSTITUTE(SUBSTITUTE(TblLibrary[[#This Row],[LinkToVideo]],"watch?",""),"v=","v/") -> http://www.youtube.com/v/V2KK9gv1ApI | J50: =IF(ISERROR(SEARCH(KeyWord,TblLibrary[[#This Row],[Title]])),0,1) -> 1 | K50: =IF(TblLibrary[[#This Row],[Selected]]=1,MAX($K$20:K49)+1,"") -> 27
D51: MrExcel | E51: Charts & Charting | F51: MrExcel's Learn Excel #956 - Chart Labels Between | G51: http://www.youtube.com/watch?v=BV1faswjaR0&list=PLE4E028E846F8084A | H51: =LEFT(TblLibrary[[#This Row],[LinkWithPlaylist]],FIND("&",TblLibrary[[#This Row],[LinkWithPlaylist]])-1) -> http://www.youtube.com/watch?v=BV1faswjaR0 | I51: =SUBSTITUTE(SUBSTITUTE(TblLibrary[[#This Row],[LinkToVideo]],"watch?",""),"v=","v/") -> http://www.youtube.com/v/BV1faswjaR0 | J51: =IF(ISERROR(SEARCH(KeyWord,TblLibrary[[#This Row],[Title]])),0,1) -> 1 | K51: =IF(TblLibrary[[#This Row],[Selected]]=1,MAX($K$20:K50)+1,"") -> 28
D52: MrExcel | E52: Charts & Charting | F52: MrExcel's Learn Excel #948 - Reverse Chart Axis | G52: http://www.youtube.com/watch?v=-LFOWanEnMk&list=PLE4E028E846F8084A | H52: =LEFT(TblLibrary[[#This Row],[LinkWithPlaylist]],FIND("&",TblLibrary[[#This Row],[LinkWithPlaylist]])-1) -> http://www.youtube.com/watch?v=-LFOWanEnMk | I52: =SUBSTITUTE(SUBSTITUTE(TblLibrary[[#This Row],[LinkToVideo]],"watch?",""),"v=","v/") -> http://www.youtube.com/v/-LFOWanEnMk | J52: =IF(ISERROR(SEARCH(KeyWord,TblLibrary[[#This Row],[Title]])),0,1) -> 1 | K52: =IF(TblLibrary[[#This Row],[Selected]]=1,MAX($K$20:K51)+1,"") -> 29
D53: MrExcel | E53: Charts & Charting | F53: MrExcel's Learn Excel #684 - Bar of Pie | G53: http://www.youtube.com/watch?v=KhWcV3tAdys&list=PLE4E028E846F8084A | H53: =LEFT(TblLibrary[[#This Row],[LinkWithPlaylist]],FIND("&",TblLibrary[[#This Row],[LinkWithPlaylist]])-1) -> http://www.youtube.com/watch?v=KhWcV3tAdys | I53: =SUBSTITUTE(SUBSTITUTE(TblLibrary[[#This Row],[LinkToVideo]],"watch?",""),"v=","v/") -> http://www.youtube.com/v/KhWcV3tAdys | J53: =IF(ISERROR(SEARCH(KeyWord,TblLibrary[[#This Row],[Title]])),0,1) -> 1 | K53: =IF(TblLibrary[[#This Row],[Selected]]=1,MAX($K$20:K52)+1,"") -> 30
D54: MrExcel | E54: Charts & Charting | F54: Multiple Scatter - 1038 - Learn Excel from MrExcel Podcast | G54: http://www.youtube.com/watch?v=drowGh-yJYg&list=PLE4E028E846F8084A | H54: =LEFT(TblLibrary[[#This Row],[LinkWithPlaylist]],FIND("&",TblLibrary[[#This Row],[LinkWithPlaylist]])-1) -> http://www.youtube.com/watch?v=drowGh-yJYg | I54: =SUBSTITUTE(SUBSTITUTE(TblLibrary[[#This Row],[LinkToVideo]],"watch?",""),"v=","v/") -> http://www.youtube.com/v/drowGh-yJYg | J54: =IF(ISERROR(SEARCH(KeyWord,TblLibrary[[#This Row],[Title]])),0,1) -> 1 | K54: =IF(TblLibrary[[#This Row],[Selected]]=1,MAX($K$20:K53)+1,"") -> 31
D55: MrExcel | E55: Charts & Charting | F55: Better 1016 - #1036 - Learn Excel from MrExcel Podcast | G55: http://www.youtube.com/watch?v=06nXOo5SIXs&list=PLE4E028E846F8084A | H55: =LEFT(TblLibrary[[#This Row],[LinkWithPlaylist]],FIND("&",TblLibrary[[#This Row],[LinkWithPlaylist]])-1) -> http://www.youtube.com/watch?v=06nXOo5SIXs | I55: =SUBSTITUTE(SUBSTITUTE(TblLibrary[[#This Row],[LinkToVideo]],"watch?",""),"v=","v/") -> http://www.youtube.com/v/06nXOo5SIXs | J55: =IF(ISERROR(SEARCH(KeyWord,TblLibrary[[#This Row],[Title]])),0,1) -> 1 | K55: =IF(TblLibrary[[#This Row],[Selected]]=1,MAX($K$20:K54)+1,"") -> 32
D56: MrExcel | E56: Charts & Charting | F56: Multiple XY II - 1032 - Learn Excel from MrExcel Podcast | G56: http://www.youtube.com/watch?v=_zABKrMDOEI&list=PLE4E028E846F8084A | H56: =LEFT(TblLibrary[[#This Row],[LinkWithPlaylist]],FIND("&",TblLibrary[[#This Row],[LinkWithPlaylist]])-1) -> http://www.youtube.com/watch?v=_zABKrMDOEI | I56: =SUBSTITUTE(SUBSTITUTE(TblLibrary[[#This Row],[LinkToVideo]],"watch?",""),"v=","v/") -> http://www.youtube.com/v/_zABKrMDOEI | J56: =IF(ISERROR(SEARCH(KeyWord,TblLibrary[[#This Row],[Title]])),0,1) -> 1 | K56: =IF(TblLibrary[[#This Row],[Selected]]=1,MAX($K$20:K55)+1,"") -> 33
D57: MrExcel | E57: Charts & Charting | F57: Multiple XY Series - 1031 - Learn Excel from MrExcel Podcast | G57: http://www.youtube.com/watch?v=p9rsuY_hoFo&list=PLE4E028E846F8084A | H57: =LEFT(TblLibrary[[#This Row],[LinkWithPlaylist]],FIND("&",TblLibrary[[#This Row],[LinkWithPlaylist]])-1) -> http://www.youtube.com/watch?v=p9rsuY_hoFo | I57: =SUBSTITUTE(SUBSTITUTE(TblLibrary[[#This Row],[LinkToVideo]],"watch?",""),"v=","v/") -> http://www.youtube.com/v/p9rsuY_hoFo | J57: =IF(ISERROR(SEARCH(KeyWord,TblLibrary[[#This Row],[Title]])),0,1) -> 1 | K57: =IF(TblLibrary[[#This Row],[Selected]]=1,MAX($K$20:K56)+1,"") -> 34
D58: MrExcel | E58: Charts & Charting | F58: 1016 Redux - 1026 - Learn Excel from MrExcel Podcast | G58: http://www.youtube.com/watch?v=9eVGKzbzpm4&list=PLE4E028E846F8084A | H58: =LEFT(TblLibrary[[#This Row],[LinkWithPlaylist]],FIND("&",TblLibrary[[#This Row],[LinkWithPlaylist]])-1) -> http://www.youtube.com/watch?v=9eVGKzbzpm4 | I58: =SUBSTITUTE(SUBSTITUTE(TblLibrary[[#This Row],[LinkToVideo]],"watch?",""),"v=","v/") -> http://www.youtube.com/v/9eVGKzbzpm4 | J58: =IF(ISERROR(SEARCH(KeyWord,TblLibrary[[#This Row],[Title]])),0,1) -> 1 | K58: =IF(TblLibrary[[#This Row],[Selected]]=1,MAX($K$20:K57)+1,"") -> 35
D59: MrExcel | E59: Charts & Charting | F59: Highlighting Line Segment - 1016 - Learn Excel from MrExc... | G59: http://www.youtube.com/watch?v=8DWZ9Dd0Lks&list=PLE4E028E846F8084A | H59: =LEFT(TblLibrary[[#This Row],[LinkWithPlaylist]],FIND("&",TblLibrary[[#This Row],[LinkWithPlaylist]])-1) -> http://www.youtube.com/watch?v=8DWZ9Dd0Lks | I59: =SUBSTITUTE(SUBSTITUTE(TblLibrary[[#This Row],[LinkToVideo]],"watch?",""),"v=","v/") -> http://www.youtube.com/v/8DWZ9Dd0Lks | J59: =IF(ISERROR(SEARCH(KeyWord,TblLibrary[[#This Row],[Title]])),0,1) -> 1 | K59: =IF(TblLibrary[[#This Row],[Selected]]=1,MAX($K$20:K58)+1,"") -> 36
D60: MrExcel | E60: Charts & Charting | F60: MrExcel's Learn Excel #1008 - WIIW: Copy Chart Formatting | G60: http://www.youtube.com/watch?v=05vUamPR3zo&list=PLE4E028E846F8084A | H60: =LEFT(TblLibrary[[#This Row],[LinkWithPlaylist]],FIND("&",TblLibrary[[#This Row],[LinkWithPlaylist]])-1) -> http://www.youtube.com/watch?v=05vUamPR3zo | I60: =SUBSTITUTE(SUBSTITUTE(TblLibrary[[#This Row],[LinkToVideo]],"watch?",""),"v=","v/") -> http://www.youtube.com/v/05vUamPR3zo | J60: =IF(ISERROR(SEARCH(KeyWord,TblLibrary[[#This Row],[Title]])),0,1) -> 1 | K60: =IF(TblLibrary[[#This Row],[Selected]]=1,MAX($K$20:K59)+1,"") -> 37
D61: MrExcel | E61: Charts & Charting | F61: MrExcel's Learn Excel #1004 - Charting Zero | G61: http://www.youtube.com/watch?v=td24UT9EuJ0&list=PLE4E028E846F8084A | H61: =LEFT(TblLibrary[[#This Row],[LinkWithPlaylist]],FIND("&",TblLibrary[[#This Row],[LinkWithPlaylist]])-1) -> http://www.youtube.com/watch?v=td24UT9EuJ0 | I61: =SUBSTITUTE(SUBSTITUTE(TblLibrary[[#This Row],[LinkToVideo]],"watch?",""),"v=","v/") -> http://www.youtube.com/v/td24UT9EuJ0 | J61: =IF(ISERROR(SEARCH(KeyWord,TblLibrary[[#This Row],[Title]])),0,1) -> 1 | K61: =IF(TblLibrary[[#This Row],[Selected]]=1,MAX($K$20:K60)+1,"") -> 38
D62: MrExcel | E62: Charts & Charting | F62: MrExcel's Learn Excel #994 - Dynamic Charting II | G62: http://www.youtube.com/watch?v=Rydn4sPNf1E&list=PLE4E028E846F8084A | H62: =LEFT(TblLibrary[[#This Row],[LinkWithPlaylist]],FIND("&",TblLibrary[[#This Row],[LinkWithPlaylist]])-1) -> http://www.youtube.com/watch?v=Rydn4sPNf1E | I62: =SUBSTITUTE(SUBSTITUTE(TblLibrary[[#This Row],[LinkToVideo]],"watch?",""),"v=","v/") -> http://www.youtube.com/v/Rydn4sPNf1E | J62: =IF(ISERROR(SEARCH(KeyWord,TblLibrary[[#This Row],[Title]])),0,1) -> 1 | K62: =IF(TblLibrary[[#This Row],[Selected]]=1,MAX($K$20:K61)+1,"") -> 39
D63: MrExcel | E63: Charts & Charting | F63: MrExcel's Learn Excel #993 - Dynamic Charting 1 | G63: http://www.youtube.com/watch?v=Z6UwrXpagIY&list=PLE4E028E846F8084A | H63: =LEFT(TblLibrary[[#This Row],[LinkWithPlaylist]],FIND("&",TblLibrary[[#This Row],[LinkWithPlaylist]])-1) -> http://www.youtube.com/watch?v=Z6UwrXpagIY | I63: =SUBSTITUTE(SUBSTITUTE(TblLibrary[[#This Row],[LinkToVideo]],"watch?",""),"v=","v/") -> http://www.youtube.com/v/Z6UwrXpagIY | J63: =IF(ISERROR(SEARCH(KeyWord,TblLibrary[[#This Row],[Title]])),0,1) -> 1 | K63: =IF(TblLibrary[[#This Row],[Selected]]=1,MAX($K$20:K62)+1,"") -> 40
D64: MrExcel | E64: Charts & Charting | F64: MrExcel's Learn Excel #988 - WIIW: Marker Fill | G64: http://www.youtube.com/watch?v=hoU6ocETahI&list=PLE4E028E846F8084A | H64: =LEFT(TblLibrary[[#This Row],[LinkWithPlaylist]],FIND("&",TblLibrary[[#This Row],[LinkWithPlaylist]])-1) -> http://www.youtube.com/watch?v=hoU6ocETahI | I64: =SUBSTITUTE(SUBSTITUTE(TblLibrary[[#This Row],[LinkToVideo]],"watch?",""),"v=","v/") -> http://www.youtube.com/v/hoU6ocETahI | J64: =IF(ISERROR(SEARCH(KeyWord,TblLibrary[[#This Row],[Title]])),0,1) -> 1 | K64: =IF(TblLibrary[[#This Row],[Selected]]=1,MAX($K$20:K63)+1,"") -> 41
D65: MrExcel | E65: Charts & Charting | F65: MrExcel's Learn Excel #985 - Dueling: Chart Types | G65: http://www.youtube.com/watch?v=JTuiLcK8M3I&list=PLE4E028E846F8084A | H65: =LEFT(TblLibrary[[#This Row],[LinkWithPlaylist]],FIND("&",TblLibrary[[#This Row],[LinkWithPlaylist]])-1) -> http://www.youtube.com/watch?v=JTuiLcK8M3I | I65: =SUBSTITUTE(SUBSTITUTE(TblLibrary[[#This Row],[LinkToVideo]],"watch?",""),"v=","v/") -> http://www.youtube.com/v/JTuiLcK8M3I | J65: =IF(ISERROR(SEARCH(KeyWord,TblLibrary[[#This Row],[Title]])),0,1) -> 1 | K65: =IF(TblLibrary[[#This Row],[Selected]]=1,MAX($K$20:K64)+1,"") -> 42
D66: MrExcel | E66: Charts & Charting | F66: MrExcel's Learn Excel #979 - Order of Magnitude | G66: http://www.youtube.com/watch?v=eRJ0mBthrWk&list=PLE4E028E846F8084A | H66: =LEFT(TblLibrary[[#This Row],[LinkWithPlaylist]],FIND("&",TblLibrary[[#This Row],[LinkWithPlaylist]])-1) -> http://www.youtube.com/watch?v=eRJ0mBthrWk | I66: =SUBSTITUTE(SUBSTITUTE(TblLibrary[[#This Row],[LinkToVideo]],"watch?",""),"v=","v/") -> http://www.youtube.com/v/eRJ0mBthrWk | J66: =IF(ISERROR(SEARCH(KeyWord,TblLibrary[[#This Row],[Title]])),0,1) -> 1 | K66: =IF(TblLibrary[[#This Row],[Selected]]=1,MAX($K$20:K65)+1,"") -> 43
D67: MrExcel | E67: Charts & Charting | F67: Learn Excel from MrExcel Episode 918 - Chart Background 2003 | G67: http://www.youtube.com/watch?v=WZ8pYU6vbbA&list=PLE4E028E846F8084A | H67: =LEFT(TblLibrary[[#This Row],[LinkWithPlaylist]],FIND("&",TblLibrary[[#This Row],[LinkWithPlaylist]])-1) -> http://www.youtube.com/watch?v=WZ8pYU6vbbA | I67: =SUBSTITUTE(SUBSTITUTE(TblLibrary[[#This Row],[LinkToVideo]],"watch?",""),"v=","v/") -> http://www.youtube.com/v/WZ8pYU6vbbA | J67: =IF(ISERROR(SEARCH(KeyWord,TblLibrary[[#This Row],[Title]])),0,1) -> 1 | K67: =IF(TblLibrary[[#This Row],[Selected]]=1,MAX($K$20:K66)+1,"") -> 44
D68: MrExcel | E68: Charts & Charting | F68: Learn Excel from MrExcel Episode 917 - Chart Background | G68: http://www.youtube.com/watch?v=NtiEjmKakLQ&list=PLE4E028E846F8084A | H68: =LEFT(TblLibrary[[#This Row],[LinkWithPlaylist]],FIND("&",TblLibrary[[#This Row],[LinkWithPlaylist]])-1) -> http://www.youtube.com/watch?v=NtiEjmKakLQ | I68: =SUBSTITUTE(SUBSTITUTE(TblLibrary[[#This Row],[LinkToVideo]],"watch?",""),"v=","v/") -> http://www.youtube.com/v/NtiEjmKakLQ | J68: =IF(ISERROR(SEARCH(KeyWord,TblLibrary[[#This Row],[Title]])),0,1) -> 1 | K68: =IF(TblLibrary[[#This Row],[Selected]]=1,MAX($K$20:K67)+1,"") -> 45
D69: MrExcel | E69: Charts & Charting | F69: MrExcel's Learn Excel #897 - Paste Data on a Chart | G69: http://www.youtube.com/watch?v=xgcr6wCOAPg&list=PLE4E028E846F8084A | H69: =LEFT(TblLibrary[[#This Row],[LinkWithPlaylist]],FIND("&",TblLibrary[[#This Row],[LinkWithPlaylist]])-1) -> http://www.youtube.com/watch?v=xgcr6wCOAPg | I69: =SUBSTITUTE(SUBSTITUTE(TblLibrary[[#This Row],[LinkToVideo]],"watch?",""),"v=","v/") -> http://www.youtube.com/v/xgcr6wCOAPg | J69: =IF(ISERROR(SEARCH(KeyWord,TblLibrary[[#This Row],[Title]])),0,1) -> 1 | K69: =IF(TblLibrary[[#This Row],[Selected]]=1,MAX($K$20:K68)+1,"") -> 46
D70: MrExcel | E70: Charts & Charting | F70: MrExcel's Learn Excel #885 - Ugly Time-Series Charts | G70: http://www.youtube.com/watch?v=OYjpqjqbYRs&list=PLE4E028E846F8084A | H70: =LEFT(TblLibrary[[#This Row],[LinkWithPlaylist]],FIND("&",TblLibrary[[#This Row],[LinkWithPlaylist]])-1) -> http://www.youtube.com/watch?v=OYjpqjqbYRs | I70: =SUBSTITUTE(SUBSTITUTE(TblLibrary[[#This Row],[LinkToVideo]],"watch?",""),"v=","v/") -> http://www.youtube.com/v/OYjpqjqbYRs | J70: =IF(ISERROR(SEARCH(KeyWord,TblLibrary[[#This Row],[Title]])),0,1) -> 1 | K70: =IF(TblLibrary[[#This Row],[Selected]]=1,MAX($K$20:K69)+1,"") -> 47
D71: MrExcel | E71: Charts & Charting | F71: MrExcel's Learn Excel #881 - Chart Quarters or Months | G71: http://www.youtube.com/watch?v=e4dP_Mf8LvM&list=PLE4E028E846F8084A | H71: =LEFT(TblLibrary[[#This Row],[LinkWithPlaylist]],FIND("&",TblLibrary[[#This Row],[LinkWithPlaylist]])-1) -> http://www.youtube.com/watch?v=e4dP_Mf8LvM | I71: =SUBSTITUTE(SUBSTITUTE(TblLibrary[[#This Row],[LinkToVideo]],"watch?",""),"v=","v/") -> http://www.youtube.com/v/e4dP_Mf8LvM | J71: =IF(ISERROR(SEARCH(KeyWord,TblLibrary[[#This Row],[Title]])),0,1) -> 1 | K71: =IF(TblLibrary[[#This Row],[Selected]]=1,MAX($K$20:K70)+1,"") -> 48
D72: MrExcel | E72: Charts & Charting | F72: MrExcel's Learn Excel #845 - Stacked Column 3 | G72: http://www.youtube.com/watch?v=TUyJ8odcFwA&list=PLE4E028E846F8084A | H72: =LEFT(TblLibrary[[#This Row],[LinkWithPlaylist]],FIND("&",TblLibrary[[#This Row],[LinkWithPlaylist]])-1) -> http://www.youtube.com/watch?v=TUyJ8odcFwA | I72: =SUBSTITUTE(SUBSTITUTE(TblLibrary[[#This Row],[LinkToVideo]],"watch?",""),"v=","v/") -> http://www.youtube.com/v/TUyJ8odcFwA | J72: =IF(ISERROR(SEARCH(KeyWord,TblLibrary[[#This Row],[Title]])),0,1) -> 1 | K72: =IF(TblLibrary[[#This Row],[Selected]]=1,MAX($K$20:K71)+1,"") -> 49
D73: MrExcel | E73: Charts & Charting | F73: MrExcel's Learn Excel #836 - Pie Chart on a Coin | G73: http://www.youtube.com/watch?v=htizndC8OIg&list=PLE4E028E846F8084A | H73: =LEFT(TblLibrary[[#This Row],[LinkWithPlaylist]],FIND("&",TblLibrary[[#This Row],[LinkWithPlaylist]])-1) -> http://www.youtube.com/watch?v=htizndC8OIg | I73: =SUBSTITUTE(SUBSTITUTE(TblLibrary[[#This Row],[LinkToVideo]],"watch?",""),"v=","v/") -> http://www.youtube.com/v/htizndC8OIg | J73: =IF(ISERROR(SEARCH(KeyWord,TblLibrary[[#This Row],[Title]])),0,1) -> 1 | K73: =IF(TblLibrary[[#This Row],[Selected]]=1,MAX($K$20:K72)+1,"") -> 50
D74: MrExcel | E74: Charts & Charting | F74: MrExcel's Learn Excel #815 - 801 Chart Redux | G74: http://www.youtube.com/watch?v=f-OoAfj2_Sk&list=PLE4E028E846F8084A | H74: =LEFT(TblLibrary[[#This Row],[LinkWithPlaylist]],FIND("&",TblLibrary[[#This Row],[LinkWithPlaylist]])-1) -> http://www.youtube.com/watch?v=f-OoAfj2_Sk | I74: =SUBSTITUTE(SUBSTITUTE(TblLibrary[[#This Row],[LinkToVideo]],"watch?",""),"v=","v/") -> http://www.youtube.com/v/f-OoAfj2_Sk | J74: =IF(ISERROR(SEARCH(KeyWord,TblLibrary[[#This Row],[Title]])),0,1) -> 1 | K74: =IF(TblLibrary[[#This Row],[Selected]]=1,MAX($K$20:K73)+1,"") -> 51
D75: MrExcel | E75: Charts & Charting | F75: MrExcel's Learn Excel #800 - Chart Conditional Formatting | G75: http://www.youtube.com/watch?v=nrIo5eODj_c&list=PLE4E028E846F8084A | H75: =LEFT(TblLibrary[[#This Row],[LinkWithPlaylist]],FIND("&",TblLibrary[[#This Row],[LinkWithPlaylist]])-1) -> http://www.youtube.com/watch?v=nrIo5eODj_c | I75: =SUBSTITUTE(SUBSTITUTE(TblLibrary[[#This Row],[LinkToVideo]],"watch?",""),"v=","v/") -> http://www.youtube.com/v/nrIo5eODj_c | J75: =IF(ISERROR(SEARCH(KeyWord,TblLibrary[[#This Row],[Title]])),0,1) -> 1 | K75: =IF(TblLibrary[[#This Row],[Selected]]=1,MAX($K$20:K74)+1,"") -> 52
D76: MrExcel | E76: Charts & Charting | F76: MrExcel's Learn Excel #783 - Hide Zeroes | G76: http://www.youtube.com/watch?v=I1nTQFM_MIQ&list=PLE4E028E846F8084A | H76: =LEFT(TblLibrary[[#This Row],[LinkWithPlaylist]],FIND("&",TblLibrary[[#This Row],[LinkWithPlaylist]])-1) -> http://www.youtube.com/watch?v=I1nTQFM_MIQ | I76: =SUBSTITUTE(SUBSTITUTE(TblLibrary[[#This Row],[LinkToVideo]],"watch?",""),"v=","v/") -> http://www.youtube.com/v/I1nTQFM_MIQ | J76: =IF(ISERROR(SEARCH(KeyWord,TblLibrary[[#This Row],[Title]])),0,1) -> 1 | K76: =IF(TblLibrary[[#This Row],[Selected]]=1,MAX($K$20:K75)+1,"") -> 53
D77: MrExcel | E77: Charts & Charting | F77: MrExcel's Learn Excel #778 - Interative TextBox | G77: http://www.youtube.com/watch?v=7j6vfcvMf4o&list=PLE4E028E846F8084A | H77: =LEFT(TblLibrary[[#This Row],[LinkWithPlaylist]],FIND("&",TblLibrary[[#This Row],[LinkWithPlaylist]])-1) -> http://www.youtube.com/watch?v=7j6vfcvMf4o | I77: =SUBSTITUTE(SUBSTITUTE(TblLibrary[[#This Row],[LinkToVideo]],"watch?",""),"v=","v/") -> http://www.youtube.com/v/7j6vfcvMf4o | J77: =IF(ISERROR(SEARCH(KeyWord,TblLibrary[[#This Row],[Title]])),0,1) -> 1 | K77: =IF(TblLibrary[[#This Row],[Selected]]=1,MAX($K$20:K76)+1,"") -> 54
D78: MrExcel | E78: Charts & Charting | F78: MrExcel's Learn Excel #776 - Interactive Chart | G78: http://www.youtube.com/watch?v=nndXEeaArBA&list=PLE4E028E846F8084A | H78: =LEFT(TblLibrary[[#This Row],[LinkWithPlaylist]],FIND("&",TblLibrary[[#This Row],[LinkWithPlaylist]])-1) -> http://www.youtube.com/watch?v=nndXEeaArBA | I78: =SUBSTITUTE(SUBSTITUTE(TblLibrary[[#This Row],[LinkToVideo]],"watch?",""),"v=","v/") -> http://www.youtube.com/v/nndXEeaArBA | J78: =IF(ISERROR(SEARCH(KeyWord,TblLibrary[[#This Row],[Title]])),0,1) -> 1 | K78: =IF(TblLibrary[[#This Row],[Selected]]=1,MAX($K$20:K77)+1,"") -> 55
D79: MrExcel | E79: Charts & Charting | F79: MrExcel's Learn Excel #770 - Moving Average | G79: http://www.youtube.com/watch?v=M5NIBGcsvTs&list=PLE4E028E846F8084A | H79: =LEFT(TblLibrary[[#This Row],[LinkWithPlaylist]],FIND("&",TblLibrary[[#This Row],[LinkWithPlaylist]])-1) -> http://www.youtube.com/watch?v=M5NIBGcsvTs | I79: =SUBSTITUTE(SUBSTITUTE(TblLibrary[[#This Row],[LinkToVideo]],"watch?",""),"v=","v/") -> http://www.youtube.com/v/M5NIBGcsvTs | J79: =IF(ISERROR(SEARCH(KeyWord,TblLibrary[[#This Row],[Title]])),0,1) -> 1 | K79: =IF(TblLibrary[[#This Row],[Selected]]=1,MAX($K$20:K78)+1,"") -> 56
D80: MrExcel | E80: Charts & Charting | F80: MrExcel's Learn Excel #674 - Negative Invert | G80: http://www.youtube.com/watch?v=Koct8hTowHk&list=PLE4E028E846F8084A | H80: =LEFT(TblLibrary[[#This Row],[LinkWithPlaylist]],FIND("&",TblLibrary[[#This Row],[LinkWithPlaylist]])-1) -> http://www.youtube.com/watch?v=Koct8hTowHk | I80: =SUBSTITUTE(SUBSTITUTE(TblLibrary[[#This Row],[LinkToVideo]],"watch?",""),"v=","v/") -> http://www.youtube.com/v/Koct8hTowHk | J80: =IF(ISERROR(SEARCH(KeyWord,TblLibrary[[#This Row],[Title]])),0,1) -> 1 | K80: =IF(TblLibrary[[#This Row],[Selected]]=1,MAX($K$20:K79)+1,"") -> 57
D81: MrExcel | E81: Charts & Charting | F81: MrExcel's Learn Excel #591 - Missing Dates | G81: http://www.youtube.com/watch?v=nkxSmUzgEJg&list=PLE4E028E846F8084A | H81: =LEFT(TblLibrary[[#This Row],[LinkWithPlaylist]],FIND("&",TblLibrary[[#This Row],[LinkWithPlaylist]])-1) -> http://www.youtube.com/watch?v=nkxSmUzgEJg | I81: =SUBSTITUTE(SUBSTITUTE(TblLibrary[[#This Row],[LinkToVideo]],"watch?",""),"v=","v/") -> http://www.youtube.com/v/nkxSmUzgEJg | J81: =IF(ISERROR(SEARCH(KeyWord,TblLibrary[[#This Row],[Title]])),0,1) -> 1 | K81: =IF(TblLibrary[[#This Row],[Selected]]=1,MAX($K$20:K80)+1,"") -> 58
D82: MrExcel | E82: Charts & Charting | F82: MrExcel's Learn Excel #590 - Rolling Charts | G82: http://www.youtube.com/watch?v=4e3RkYH4hFs&list=PLE4E028E846F8084A | H82: =LEFT(TblLibrary[[#This Row],[LinkWithPlaylist]],FIND("&",TblLibrary[[#This Row],[LinkWithPlaylist]])-1) -> http://www.youtube.com/watch?v=4e3RkYH4hFs | I82: =SUBSTITUTE(SUBSTITUTE(TblLibrary[[#This Row],[LinkToVideo]],"watch?",""),"v=","v/") -> http://www.youtube.com/v/4e3RkYH4hFs | J82: =IF(ISERROR(SEARCH(KeyWord,TblLibrary[[#This Row],[Title]])),0,1) -> 1 | K82: =IF(TblLibrary[[#This Row],[Selected]]=1,MAX($K$20:K81)+1,"") -> 59
D83: MrExcel | E83: Charts & Charting | F83: Organizing Chart Data - 469 - Learn Excel from MrExcel Podcast | G83: http://www.youtube.com/watch?v=TyUU8Wm2UD0&list=PLE4E028E846F8084A | H83: =LEFT(TblLibrary[[#This Row],[LinkWithPlaylist]],FIND("&",TblLibrary[[#This Row],[LinkWithPlaylist]])-1) -> http://www.youtube.com/watch?v=TyUU8Wm2UD0 | I83: =SUBSTITUTE(SUBSTITUTE(TblLibrary[[#This Row],[LinkToVideo]],"watch?",""),"v=","v/") -> http://www.youtube.com/v/TyUU8Wm2UD0 | J83: =IF(ISERROR(SEARCH(KeyWord,TblLibrary[[#This Row],[Title]])),0,1) -> 1 | K83: =IF(TblLibrary[[#This Row],[Selected]]=1,MAX($K$20:K82)+1,"") -> 60
D84: MrExcel | E84: Charts & Charting | F84: Chart Resizing Problems - 456 - Learn Excel from MrExcel Podcast | G84: http://www.youtube.com/watch?v=SYm61U1vqAs&list=PLE4E028E846F8084A | H84: =LEFT(TblLibrary[[#This Row],[LinkWithPlaylist]],FIND("&",TblLibrary[[#This Row],[LinkWithPlaylist]])-1) -> http://www.youtube.com/watch?v=SYm61U1vqAs | I84: =SUBSTITUTE(SUBSTITUTE(TblLibrary[[#This Row],[LinkToVideo]],"watch?",""),"v=","v/") -> http://www.youtube.com/v/SYm61U1vqAs | J84: =IF(ISERROR(SEARCH(KeyWord,TblLibrary[[#This Row],[Title]])),0,1) -> 1 | K84: =IF(TblLibrary[[#This Row],[Selected]]=1,MAX($K$20:K83)+1,"") -> 61
D85: MrExcel | E85: Charts & Charting | F85: Overlay Charts - 444 - Learn Excel from MrExcel Podcast | G85: http://www.youtube.com/watch?v=bWgQwLXSgXo&list=PLE4E028E846F8084A | H85: =LEFT(TblLibrary[[#This Row],[LinkWithPlaylist]],FIND("&",TblLibrary[[#This Row],[LinkWithPlaylist]])-1) -> http://www.youtube.com/watch?v=bWgQwLXSgXo | I85: =SUBSTITUTE(SUBSTITUTE(TblLibrary[[#This Row],[LinkToVideo]],"watch?",""),"v=","v/") -> http://www.youtube.com/v/bWgQwLXSgXo | J85: =IF(ISERROR(SEARCH(KeyWord,TblLibrary[[#This Row],[Title]])),0,1) -> 1 | K85: =IF(TblLibrary[[#This Row],[Selected]]=1,MAX($K$20:K84)+1,"") -> 62
D86: MrExcel | E86: Charts & Charting | F86: Combo Chart - 442 - Learn Excel from MrExcel Podcast | G86: http://www.youtube.com/watch?v=f07NFCbC8VQ&list=PLE4E028E846F8084A | H86: =LEFT(TblLibrary[[#This Row],[LinkWithPlaylist]],FIND("&",TblLibrary[[#This Row],[LinkWithPlaylist]])-1) -> http://www.youtube.com/watch?v=f07NFCbC8VQ | I86: =SUBSTITUTE(SUBSTITUTE(TblLibrary[[#This Row],[LinkToVideo]],"watch?",""),"v=","v/") -> http://www.youtube.com/v/f07NFCbC8VQ | J86: =IF(ISERROR(SEARCH(KeyWord,TblLibrary[[#This Row],[Title]])),0,1) -> 1 | K86: =IF(TblLibrary[[#This Row],[Selected]]=1,MAX($K$20:K85)+1,"") -> 63
D87: MrExcel | E87: Charts & Charting | F87: MrExcel's Learn Excel #972 - Chart Data Table | G87: http://www.youtube.com/watch?v=rEFFZXONUDc&list=PLE4E028E846F8084A | H87: =LEFT(TblLibrary[[#This Row],[LinkWithPlaylist]],FIND("&",TblLibrary[[#This Row],[LinkWithPlaylist]])-1) -> http://www.youtube.com/watch?v=rEFFZXONUDc | I87: =SUBSTITUTE(SUBSTITUTE(TblLibrary[[#This Row],[LinkToVideo]],"watch?",""),"v=","v/") -> http://www.youtube.com/v/rEFFZXONUDc | J87: =IF(ISERROR(SEARCH(KeyWord,TblLibrary[[#This Row],[Title]])),0,1) -> 1 | K87: =IF(TblLibrary[[#This Row],[Selected]]=1,MAX($K$20:K86)+1,"") -> 64
D88: MrExcel | E88: Charts & Charting | F88: MrExcel's Learn Excel #888 - WIIW - 2 Axes Chart | G88: http://www.youtube.com/watch?v=27Y9vG3VIzg&list=PLE4E028E846F8084A | H88: =LEFT(TblLibrary[[#This Row],[LinkWithPlaylist]],FIND("&",TblLibrary[[#This Row],[LinkWithPlaylist]])-1) -> http://www.youtube.com/watch?v=27Y9vG3VIzg | I88: =SUBSTITUTE(SUBSTITUTE(TblLibrary[[#This Row],[LinkToVideo]],"watch?",""),"v=","v/") -> http://www.youtube.com/v/27Y9vG3VIzg | J88: =IF(ISERROR(SEARCH(KeyWord,TblLibrary[[#This Row],[Title]])),0,1) -> 1 | K88: =IF(TblLibrary[[#This Row],[Selected]]=1,MAX($K$20:K87)+1,"") -> 65
D89: MrExcel | E89: Charts & Charting | F89: MrExcel's Learn Excel #821 - Dual Histogram | G89: http://www.youtube.com/watch?v=ZCyImV6v6J8&list=PLE4E028E846F8084A | H89: =LEFT(TblLibrary[[#This Row],[LinkWithPlaylist]],FIND("&",TblLibrary[[#This Row],[LinkWithPlaylist]])-1) -> http://www.youtube.com/watch?v=ZCyImV6v6J8 | I89: =SUBSTITUTE(SUBSTITUTE(TblLibrary[[#This Row],[LinkToVideo]],"watch?",""),"v=","v/") -> http://www.youtube.com/v/ZCyImV6v6J8 | J89: =IF(ISERROR(SEARCH(KeyWord,TblLibrary[[#This Row],[Title]])),0,1) -> 1 | K89: =IF(TblLibrary[[#This Row],[Selected]]=1,MAX($K$20:K88)+1,"") -> 66
D90: MrExcel | E90: Charts & Charting | F90: MrExcel's Learn Excel #801 - Stacked Chart Labels | G90: http://www.youtube.com/watch?v=I_Y18bI9TEg&list=PLE4E028E846F8084A | H90: =LEFT(TblLibrary[[#This Row],[LinkWithPlaylist]],FIND("&",TblLibrary[[#This Row],[LinkWithPlaylist]])-1) -> http://www.youtube.com/watch?v=I_Y18bI9TEg | I90: =SUBSTITUTE(SUBSTITUTE(TblLibrary[[#This Row],[LinkToVideo]],"watch?",""),"v=","v/") -> http://www.youtube.com/v/I_Y18bI9TEg | J90: =IF(ISERROR(SEARCH(KeyWord,TblLibrary[[#This Row],[Title]])),0,1) -> 1 | K90: =IF(TblLibrary[[#This Row],[Selected]]=1,MAX($K$20:K89)+1,"") -> 67
D91: MrExcel | E91: Charts & Charting | F91: MrExcel's Learn Excel #683 - Chart 4%(greater than) | G91: http://www.youtube.com/watch?v=LVPzIZvo1-0&list=PLE4E028E846F8084A | H91: =LEFT(TblLibrary[[#This Row],[LinkWithPlaylist]],FIND("&",TblLibrary[[#This Row],[LinkWithPlaylist]])-1) -> http://www.youtube.com/watch?v=LVPzIZvo1-0 | I91: =SUBSTITUTE(SUBSTITUTE(TblLibrary[[#This Row],[LinkToVideo]],"watch?",""),"v=","v/") -> http://www.youtube.com/v/LVPzIZvo1-0 | J91: =IF(ISERROR(SEARCH(KeyWord,TblLibrary[[#This Row],[Title]])),0,1) -> 1 | K91: =IF(TblLibrary[[#This Row],[Selected]]=1,MAX($K$20:K90)+1,"") -> 68
D92: MrExcel | E92: Charts & Charting | F92: MrExcel's Learn Excel #492 - Chart to PowerPoint | G92: http://www.youtube.com/watch?v=MRcThuqfvG8&list=PLE4E028E846F8084A | H92: =LEFT(TblLibrary[[#This Row],[LinkWithPlaylist]],FIND("&",TblLibrary[[#This Row],[LinkWithPlaylist]])-1) -> http://www.youtube.com/watch?v=MRcThuqfvG8 | I92: =SUBSTITUTE(SUBSTITUTE(TblLibrary[[#This Row],[LinkToVideo]],"watch?",""),"v=","v/") -> http://www.youtube.com/v/MRcThuqfvG8 | J92: =IF(ISERROR(SEARCH(KeyWord,TblLibrary[[#This Row],[Title]])),0,1) -> 1 | K92: =IF(TblLibrary[[#This Row],[Selected]]=1,MAX($K$20:K91)+1,"") -> 69
D93: MrExcel | E93: Charts & Charting | F93: Cone Chart Lies- 448 - Learn Excel from MrExcel Podcast | G93: http://www.youtube.com/watch?v=dEGN9rsf6SE&list=PLE4E028E846F8084A | H93: =LEFT(TblLibrary[[#This Row],[LinkWithPlaylist]],FIND("&",TblLibrary[[#This Row],[LinkWithPlaylist]])-1) -> http://www.youtube.com/watch?v=dEGN9rsf6SE | I93: =SUBSTITUTE(SUBSTITUTE(TblLibrary[[#This Row],[LinkToVideo]],"watch?",""),"v=","v/") -> http://www.youtube.com/v/dEGN9rsf6SE | J93: =IF(ISERROR(SEARCH(KeyWord,TblLibrary[[#This Row],[Title]])),0,1) -> 1 | K93: =IF(TblLibrary[[#This Row],[Selected]]=1,MAX($K$20:K92)+1,"") -> 70
D94: MrExcel | E94: Charts & Charting | F94: PieChart Lies- 446 - Learn Excel from MrExcel Podcast | G94: http://www.youtube.com/watch?v=ZKw8AHul4g4&list=PLE4E028E846F8084A | H94: =LEFT(TblLibrary[[#This Row],[LinkWithPlaylist]],FIND("&",TblLibrary[[#This Row],[LinkWithPlaylist]])-1) -> http://www.youtube.com/watch?v=ZKw8AHul4g4 | I94: =SUBSTITUTE(SUBSTITUTE(TblLibrary[[#This Row],[LinkToVideo]],"watch?",""),"v=","v/") -> http://www.youtube.com/v/ZKw8AHul4g4 | J94: =IF(ISERROR(SEARCH(KeyWord,TblLibrary[[#This Row],[Title]])),0,1) -> 1 | K94: =IF(TblLibrary[[#This Row],[Selected]]=1,MAX($K$20:K93)+1,"") -> 71
D95: MrExcel | E95: Charts & Charting | F95: Rolling Dynamic Charting - 1013 - Learn Excel from MrExce... | G95: http://www.youtube.com/watch?v=DWIrTv2p0QQ&list=PLE4E028E846F8084A | H95: =LEFT(TblLibrary[[#This Row],[LinkWithPlaylist]],FIND("&",TblLibrary[[#This Row],[LinkWithPlaylist]])-1) -> http://www.youtube.com/watch?v=DWIrTv2p0QQ | I95: =SUBSTITUTE(SUBSTITUTE(TblLibrary[[#This Row],[LinkToVideo]],"watch?",""),"v=","v/") -> http://www.youtube.com/v/DWIrTv2p0QQ | J95: =IF(ISERROR(SEARCH(KeyWord,TblLibrary[[#This Row],[Title]])),0,1) -> 1 | K95: =IF(TblLibrary[[#This Row],[Selected]]=1,MAX($K$20:K94)+1,"") -> 72
D96: MrExcel | E96: Charts & Charting | F96: MrExcel's Learn Excel #876 - Cartesian Grid | G96: http://www.youtube.com/watch?v=AQbOtKlakMw&list=PLE4E028E846F8084A | H96: =LEFT(TblLibrary[[#This Row],[LinkWithPlaylist]],FIND("&",TblLibrary[[#This Row],[LinkWithPlaylist]])-1) -> http://www.youtube.com/watch?v=AQbOtKlakMw | I96: =SUBSTITUTE(SUBSTITUTE(TblLibrary[[#This Row],[LinkToVideo]],"watch?",""),"v=","v/") -> http://www.youtube.com/v/AQbOtKlakMw | J96: =IF(ISERROR(SEARCH(KeyWord,TblLibrary[[#This Row],[Title]])),0,1) -> 1 | K96: =IF(TblLibrary[[#This Row],[Selected]]=1,MAX($K$20:K95)+1,"") -> 73
D97: MrExcel | E97: Charts & Charting | F97: MrExcel's Learn Excel #822 - Exponential Trendlines | G97: http://www.youtube.com/watch?v=xJ3Rm0lQv1c&list=PLE4E028E846F8084A | H97: =LEFT(TblLibrary[[#This Row],[LinkWithPlaylist]],FIND("&",TblLibrary[[#This Row],[LinkWithPlaylist]])-1) -> http://www.youtube.com/watch?v=xJ3Rm0lQv1c | I97: =SUBSTITUTE(SUBSTITUTE(TblLibrary[[#This Row],[LinkToVideo]],"watch?",""),"v=","v/") -> http://www.youtube.com/v/xJ3Rm0lQv1c | J97: =IF(ISERROR(SEARCH(KeyWord,TblLibrary[[#This Row],[Title]])),0,1) -> 1 | K97: =IF(TblLibrary[[#This Row],[Selected]]=1,MAX($K$20:K96)+1,"") -> 74
D98: MrExcel | E98: Charts & Charting | F98: MrExcel's Learn Excel #805 - Widgenie | G98: http://www.youtube.com/watch?v=foo0lumnqu0&list=PLE4E028E846F8084A | H98: =LEFT(TblLibrary[[#This Row],[LinkWithPlaylist]],FIND("&",TblLibrary[[#This Row],[LinkWithPlaylist]])-1) -> http://www.youtube.com/watch?v=foo0lumnqu0 | I98: =SUBSTITUTE(SUBSTITUTE(TblLibrary[[#This Row],[LinkToVideo]],"watch?",""),"v=","v/") -> http://www.youtube.com/v/foo0lumnqu0 | J98: =IF(ISERROR(SEARCH(KeyWord,TblLibrary[[#This Row],[Title]])),0,1) -> 1 | K98: =IF(TblLibrary[[#This Row],[Selected]]=1,MAX($K$20:K97)+1,"") -> 75
D99: MrExcel | E99: Charts & Charting | F99: MrExcel's Learn Excel #777 - Option Buttons | G99: http://www.youtube.com/watch?v=uYLh_D8tb94&list=PLE4E028E846F8084A | H99: =LEFT(TblLibrary[[#This Row],[LinkWithPlaylist]],FIND("&",TblLibrary[[#This Row],[LinkWithPlaylist]])-1) -> http://www.youtube.com/watch?v=uYLh_D8tb94 | I99: =SUBSTITUTE(SUBSTITUTE(TblLibrary[[#This Row],[LinkToVideo]],"watch?",""),"v=","v/") -> http://www.youtube.com/v/uYLh_D8tb94 | J99: =IF(ISERROR(SEARCH(KeyWord,TblLibrary[[#This Row],[Title]])),0,1) -> 1 | K99: =IF(TblLibrary[[#This Row],[Selected]]=1,MAX($K$20:K98)+1,"") -> 76
D100: MrExcel | E100: Charts & Charting | F100: MrExcel's Learn Excel #762 - Chart Top Customers | G100: http://www.youtube.com/watch?v=KK1SwpjiUH8&list=PLE4E028E846F8084A | H100: =LEFT(TblLibrary[[#This Row],[LinkWithPlaylist]],FIND("&",TblLibrary[[#This Row],[LinkWithPlaylist]])-1) -> http://www.youtube.com/watch?v=KK1SwpjiUH8 | I100: =SUBSTITUTE(SUBSTITUTE(TblLibrary[[#This Row],[LinkToVideo]],"watch?",""),"v=","v/") -> http://www.youtube.com/v/KK1SwpjiUH8 | J100: =IF(ISERROR(SEARCH(KeyWord,TblLibrary[[#This Row],[Title]])),0,1) -> 1 | K100: =IF(TblLibrary[[#This Row],[Selected]]=1,MAX($K$20:K99)+1,"") -> 77
D101: MrExcel | E101: Charts & Charting | F101: MrExcel's Learn Excel #666 - Clustered Columns | G101: http://www.youtube.com/watch?v=yiWKd7pHEgA&list=PLE4E028E846F8084A | H101: =LEFT(TblLibrary[[#This Row],[LinkWithPlaylist]],FIND("&",TblLibrary[[#This Row],[LinkWithPlaylist]])-1) -> http://www.youtube.com/watch?v=yiWKd7pHEgA | I101: =SUBSTITUTE(SUBSTITUTE(TblLibrary[[#This Row],[LinkToVideo]],"watch?",""),"v=","v/") -> http://www.youtube.com/v/yiWKd7pHEgA | J101: =IF(ISERROR(SEARCH(KeyWord,TblLibrary[[#This Row],[Title]])),0,1) -> 1 | K101: =IF(TblLibrary[[#This Row],[Selected]]=1,MAX($K$20:K100)+1,"") -> 78
D102: MrExcel | E102: Charts & Charting | F102: MrExcel's Learn Excel #656 - Negative Charts | G102: http://www.youtube.com/watch?v=1tA1G-bZOyM&list=PLE4E028E846F8084A | H102: =LEFT(TblLibrary[[#This Row],[LinkWithPlaylist]],FIND("&",TblLibrary[[#This Row],[LinkWithPlaylist]])-1) -> http://www.youtube.com/watch?v=1tA1G-bZOyM | I102: =SUBSTITUTE(SUBSTITUTE(TblLibrary[[#This Row],[LinkToVideo]],"watch?",""),"v=","v/") -> http://www.youtube.com/v/1tA1G-bZOyM | J102: =IF(ISERROR(SEARCH(KeyWord,TblLibrary[[#This Row],[Title]])),0,1) -> 1 | K102: =IF(TblLibrary[[#This Row],[Selected]]=1,MAX($K$20:K101)+1,"") -> 79
D103: MrExcel | E103: Charts & Charting | F103: MrExcel's Learn Excel #648 - Changing Numbers Graphically | G103: http://www.youtube.com/watch?v=ZWjA-v9K4SM&list=PLE4E028E846F8084A | H103: =LEFT(TblLibrary[[#This Row],[LinkWithPlaylist]],FIND("&",TblLibrary[[#This Row],[LinkWithPlaylist]])-1) -> http://www.youtube.com/watch?v=ZWjA-v9K4SM | I103: =SUBSTITUTE(SUBSTITUTE(TblLibrary[[#This Row],[LinkToVideo]],"watch?",""),"v=","v/") -> http://www.youtube.com/v/ZWjA-v9K4SM | J103: =IF(ISERROR(SEARCH(KeyWord,TblLibrary[[#This Row],[Title]])),0,1) -> 1 | K103: =IF(TblLibrary[[#This Row],[Selected]]=1,MAX($K$20:K102)+1,"") -> 80
D104: MrExcel | E104: Charts & Charting | F104: MrExcel's Learn Excel #643 - Excluding Zero Values From Pie Charts | G104: http://www.youtube.com/watch?v=GKap78Lr69I&list=PLE4E028E846F8084A | H104: =LEFT(TblLibrary[[#This Row],[LinkWithPlaylist]],FIND("&",TblLibrary[[#This Row],[LinkWithPlaylist]])-1) -> http://www.youtube.com/watch?v=GKap78Lr69I | I104: =SUBSTITUTE(SUBSTITUTE(TblLibrary[[#This Row],[LinkToVideo]],"watch?",""),"v=","v/") -> http://www.youtube.com/v/GKap78Lr69I | J104: =IF(ISERROR(SEARCH(KeyWord,TblLibrary[[#This Row],[Title]])),0,1) -> 1 | K104: =IF(TblLibrary[[#This Row],[Selected]]=1,MAX($K$20:K103)+1,"") -> 81
D105: MrExcel | E105: Charts & Charting | F105: MrExcel's Learn Excel #641 - Conditionally Summing | G105: http://www.youtube.com/watch?v=LXDTVBUOxJg&list=PLE4E028E846F8084A | H105: =LEFT(TblLibrary[[#This Row],[LinkWithPlaylist]],FIND("&",TblLibrary[[#This Row],[LinkWithPlaylist]])-1) -> http://www.youtube.com/watch?v=LXDTVBUOxJg | I105: =SUBSTITUTE(SUBSTITUTE(TblLibrary[[#This Row],[LinkToVideo]],"watch?",""),"v=","v/") -> http://www.youtube.com/v/LXDTVBUOxJg | J105: =IF(ISERROR(SEARCH(KeyWord,TblLibrary[[#This Row],[Title]])),0,1) -> 1 | K105: =IF(TblLibrary[[#This Row],[Selected]]=1,MAX($K$20:K104)+1,"") -> 82
D106: MrExcel | E106: Charts & Charting | F106: MrExcel's Learn Excel #634 - Dragging Chart Points | G106: http://www.youtube.com/watch?v=c2SZNI1k5oQ&list=PLE4E028E846F8084A | H106: =LEFT(TblLibrary[[#This Row],[LinkWithPlaylist]],FIND("&",TblLibrary[[#This Row],[LinkWithPlaylist]])-1) -> http://www.youtube.com/watch?v=c2SZNI1k5oQ | I106: =SUBSTITUTE(SUBSTITUTE(TblLibrary[[#This Row],[LinkToVideo]],"watch?",""),"v=","v/") -> http://www.youtube.com/v/c2SZNI1k5oQ | J106: =IF(ISERROR(SEARCH(KeyWord,TblLibrary[[#This Row],[Title]])),0,1) -> 1 | K106: =IF(TblLibrary[[#This Row],[Selected]]=1,MAX($K$20:K105)+1,"") -> 83
D107: MrExcel | E107: Charts & Charting | F107: MrExcel's Learn Excel #609 - Hiding Chart Rows | G107: http://www.youtube.com/watch?v=Bs9P8xpvc_8&list=PLE4E028E846F8084A | H107: =LEFT(TblLibrary[[#This Row],[LinkWithPlaylist]],FIND("&",TblLibrary[[#This Row],[LinkWithPlaylist]])-1) -> http://www.youtube.com/watch?v=Bs9P8xpvc_8 | I107: =SUBSTITUTE(SUBSTITUTE(TblLibrary[[#This Row],[LinkToVideo]],"watch?",""),"v=","v/") -> http://www.youtube.com/v/Bs9P8xpvc_8 | J107: =IF(ISERROR(SEARCH(KeyWord,TblLibrary[[#This Row],[Title]])),0,1) -> 1 | K107: =IF(TblLibrary[[#This Row],[Selected]]=1,MAX($K$20:K106)+1,"") -> 84
D108: MrExcel | E108: Charts & Charting | F108: MrExcel's Learn Excel #606 - Histogram | G108: http://www.youtube.com/watch?v=Snx1rVgvCfY&list=PLE4E028E846F8084A | H108: =LEFT(TblLibrary[[#This Row],[LinkWithPlaylist]],FIND("&",TblLibrary[[#This Row],[LinkWithPlaylist]])-1) -> http://www.youtube.com/watch?v=Snx1rVgvCfY | I108: =SUBSTITUTE(SUBSTITUTE(TblLibrary[[#This Row],[LinkToVideo]],"watch?",""),"v=","v/") -> http://www.youtube.com/v/Snx1rVgvCfY | J108: =IF(ISERROR(SEARCH(KeyWord,TblLibrary[[#This Row],[Title]])),0,1) -> 1 | K108: =IF(TblLibrary[[#This Row],[Selected]]=1,MAX($K$20:K107)+1,"") -> 85
D109: MrExcel | E109: Charts & Charting | F109: MrExcel's Learn Excel #604 - Breaking Charts | G109: http://www.youtube.com/watch?v=A8sSBfTaok4&list=PLE4E028E846F8084A | H109: =LEFT(TblLibrary[[#This Row],[LinkWithPlaylist]],FIND("&",TblLibrary[[#This Row],[LinkWithPlaylist]])-1) -> http://www.youtube.com/watch?v=A8sSBfTaok4 | I109: =SUBSTITUTE(SUBSTITUTE(TblLibrary[[#This Row],[LinkToVideo]],"watch?",""),"v=","v/") -> http://www.youtube.com/v/A8sSBfTaok4 | J109: =IF(ISERROR(SEARCH(KeyWord,TblLibrary[[#This Row],[Title]])),0,1) -> 1 | K109: =IF(TblLibrary[[#This Row],[Selected]]=1,MAX($K$20:K108)+1,"") -> 86
D110: MrExcel | E110: Charts & Charting | F110: Dueling: Sparklines - 1070 - Learn Excel from MrExcel Podcast | G110: http://www.youtube.com/watch?v=T1sK7QnZHJA&list=PLE4E028E846F8084A | H110: =LEFT(TblLibrary[[#This Row],[LinkWithPlaylist]],FIND("&",TblLibrary[[#This Row],[LinkWithPlaylist]])-1) -> http://www.youtube.com/watch?v=T1sK7QnZHJA | I110: =SUBSTITUTE(SUBSTITUTE(TblLibrary[[#This Row],[LinkToVideo]],"watch?",""),"v=","v/") -> http://www.youtube.com/v/T1sK7QnZHJA | J110: =IF(ISERROR(SEARCH(KeyWord,TblLibrary[[#This Row],[Title]])),0,1) -> 1 | K110: =IF(TblLibrary[[#This Row],[Selected]]=1,MAX($K$20:K109)+1,"") -> 87
D111: MrExcel | E111: Charts & Charting | F111: Stacked & Clustered - 1091 - Learn Excel Podcast | G111: http://www.youtube.com/watch?v=j8kMp5IC6oE&list=PLE4E028E846F8084A | H111: =LEFT(TblLibrary[[#This Row],[LinkWithPlaylist]],FIND("&",TblLibrary[[#This Row],[LinkWithPlaylist]])-1) -> http://www.youtube.com/watch?v=j8kMp5IC6oE | I111: =SUBSTITUTE(SUBSTITUTE(TblLibrary[[#This Row],[LinkToVideo]],"watch?",""),"v=","v/") -> http://www.youtube.com/v/j8kMp5IC6oE | J111: =IF(ISERROR(SEARCH(KeyWord,TblLibrary[[#This Row],[Title]])),0,1) -> 1 | K111: =IF(TblLibrary[[#This Row],[Selected]]=1,MAX($K$20:K110)+1,"") -> 88
D112: MrExcel | E112: Charts & Charting | F112: Dynamic Chart Arrow - 1092 - Learn Excel Podcast | G112: http://www.youtube.com/watch?v=JHVMRjUjO9M&list=PLE4E028E846F8084A | H112: =LEFT(TblLibrary[[#This Row],[LinkWithPlaylist]],FIND("&",TblLibrary[[#This Row],[LinkWithPlaylist]])-1) -> http://www.youtube.com/watch?v=JHVMRjUjO9M | I112: =SUBSTITUTE(SUBSTITUTE(TblLibrary[[#This Row],[LinkToVideo]],"watch?",""),"v=","v/") -> http://www.youtube.com/v/JHVMRjUjO9M | J112: =IF(ISERROR(SEARCH(KeyWord,TblLibrary[[#This Row],[Title]])),0,1) -> 1 | K112: =IF(TblLibrary[[#This Row],[Selected]]=1,MAX($K$20:K111)+1,"") -> 89
D113: MrExcel | E113: Charts & Charting | F113: Revenue Bridge Chart- 1093 -Learn Excel from MrExcel Podcast | G113: http://www.youtube.com/watch?v=xUytFwreVFo&list=PLE4E028E846F8084A | H113: =LEFT(TblLibrary[[#This Row],[LinkWithPlaylist]],FIND("&",TblLibrary[[#This Row],[LinkWithPlaylist]])-1) -> http://www.youtube.com/watch?v=xUytFwreVFo | I113: =SUBSTITUTE(SUBSTITUTE(TblLibrary[[#This Row],[LinkToVideo]],"watch?",""),"v=","v/") -> http://www.youtube.com/v/xUytFwreVFo | J113: =IF(ISERROR(SEARCH(KeyWord,TblLibrary[[#This Row],[Title]])),0,1) -> 1 | K113: =IF(TblLibrary[[#This Row],[Selected]]=1,MAX($K$20:K112)+1,"") -> 90
D114: MrExcel | E114: Charts & Charting | F114: MrExcel's Learn Excel #555 - Thousands Display | G114: http://www.youtube.com/watch?v=oUK6XuDkx88&list=PLE4E028E846F8084A | H114: =LEFT(TblLibrary[[#This Row],[LinkWithPlaylist]],FIND("&",TblLibrary[[#This Row],[LinkWithPlaylist]])-1) -> http://www.youtube.com/watch?v=oUK6XuDkx88 | I114: =SUBSTITUTE(SUBSTITUTE(TblLibrary[[#This Row],[LinkToVideo]],"watch?",""),"v=","v/") -> http://www.youtube.com/v/oUK6XuDkx88 | J114: =IF(ISERROR(SEARCH(KeyWord,TblLibrary[[#This Row],[Title]])),0,1) -> 1 | K114: =IF(TblLibrary[[#This Row],[Selected]]=1,MAX($K$20:K113)+1,"") -> 91
D115: MrExcel | E115: Charts & Charting | F115: MrExcel's Learn Excel #538 - Overlapping 2007 Charts | G115: http://www.youtube.com/watch?v=m4JhmmWbzSg&list=PLE4E028E846F8084A | H115: =LEFT(TblLibrary[[#This Row],[LinkWithPlaylist]],FIND("&",TblLibrary[[#This Row],[LinkWithPlaylist]])-1) -> http://www.youtube.com/watch?v=m4JhmmWbzSg | I115: =SUBSTITUTE(SUBSTITUTE(TblLibrary[[#This Row],[LinkToVideo]],"watch?",""),"v=","v/") -> http://www.youtube.com/v/m4JhmmWbzSg | J115: =IF(ISERROR(SEARCH(KeyWord,TblLibrary[[#This Row],[Title]])),0,1) -> 1 | K115: =IF(TblLibrary[[#This Row],[Selected]]=1,MAX($K$20:K114)+1,"") -> 92
D116: MrExcel | E116: Charts & Charting | F116: 10 Year Stock Chart - 1107 - Learn Excel Podcast | G116: http://www.youtube.com/watch?v=ujrLiCr2d60&list=PLE4E028E846F8084A | H116: =LEFT(TblLibrary[[#This Row],[LinkWithPlaylist]],FIND("&",TblLibrary[[#This Row],[LinkWithPlaylist]])-1) -> http://www.youtube.com/watch?v=ujrLiCr2d60 | I116: =SUBSTITUTE(SUBSTITUTE(TblLibrary[[#This Row],[LinkToVideo]],"watch?",""),"v=","v/") -> http://www.youtube.com/v/ujrLiCr2d60 | J116: =IF(ISERROR(SEARCH(KeyWord,TblLibrary[[#This Row],[Title]])),0,1) -> 1 | K116: =IF(TblLibrary[[#This Row],[Selected]]=1,MAX($K$20:K115)+1,"") -> 93
D117: MrExcel | E117: Charts & Charting | F117: Increase Chart Font Size - 1131 - Learn Excel from MrExcel | G117: http://www.youtube.com/watch?v=1PJx7yuSSLM&list=PLE4E028E846F8084A | H117: =LEFT(TblLibrary[[#This Row],[LinkWithPlaylist]],FIND("&",TblLibrary[[#This Row],[LinkWithPlaylist]])-1) -> http://www.youtube.com/watch?v=1PJx7yuSSLM | I117: =SUBSTITUTE(SUBSTITUTE(TblLibrary[[#This Row],[LinkToVideo]],"watch?",""),"v=","v/") -> http://www.youtube.com/v/1PJx7yuSSLM | J117: =IF(ISERROR(SEARCH(KeyWord,TblLibrary[[#This Row],[Title]])),0,1) -> 1 | K117: =IF(TblLibrary[[#This Row],[Selected]]=1,MAX($K$20:K116)+1,"") -> 94
D118: MrExcel | E118: Charts & Charting | F118: MrExcel's Learn Excel #427 - Gantt Chart | G118: http://www.youtube.com/watch?v=3FhOdj4tg8g&list=PLE4E028E846F8084A | H118: =LEFT(TblLibrary[[#This Row],[LinkWithPlaylist]],FIND("&",TblLibrary[[#This Row],[LinkWithPlaylist]])-1) -> http://www.youtube.com/watch?v=3FhOdj4tg8g | I118: =SUBSTITUTE(SUBSTITUTE(TblLibrary[[#This Row],[LinkToVideo]],"watch?",""),"v=","v/") -> http://www.youtube.com/v/3FhOdj4tg8g | J118: =IF(ISERROR(SEARCH(KeyWord,TblLibrary[[#This Row],[Title]])),0,1) -> 1 | K118: =IF(TblLibrary[[#This Row],[Selected]]=1,MAX($K$20:K117)+1,"") -> 95
D119: MrExcel | E119: Charts & Charting | F119: MrExcel's Learn Excel 388 - Org Charts | G119: http://www.youtube.com/watch?v=d8XoaMj20vc&list=PLE4E028E846F8084A | H119: =LEFT(TblLibrary[[#This Row],[LinkWithPlaylist]],FIND("&",TblLibrary[[#This Row],[LinkWithPlaylist]])-1) -> http://www.youtube.com/watch?v=d8XoaMj20vc | I119: =SUBSTITUTE(SUBSTITUTE(TblLibrary[[#This Row],[LinkToVideo]],"watch?",""),"v=","v/") -> http://www.youtube.com/v/d8XoaMj20vc | J119: =IF(ISERROR(SEARCH(KeyWord,TblLibrary[[#This Row],[Title]])),0,1) -> 1 | K119: =IF(TblLibrary[[#This Row],[Selected]]=1,MAX($K$20:K118)+1,"") -> 96
D120: MrExcel | E120: Charts & Charting | F120: MrExcel's Learn Excel #374 - Logarithmic Scale | G120: http://www.youtube.com/watch?v=nGc-KMP8FBs&list=PLE4E028E846F8084A | H120: =LEFT(TblLibrary[[#This Row],[LinkWithPlaylist]],FIND("&",TblLibrary[[#This Row],[LinkWithPlaylist]])-1) -> http://www.youtube.com/watch?v=nGc-KMP8FBs | I120: =SUBSTITUTE(SUBSTITUTE(TblLibrary[[#This Row],[LinkToVideo]],"watch?",""),"v=","v/") -> http://www.youtube.com/v/nGc-KMP8FBs | J120: =IF(ISERROR(SEARCH(KeyWord,TblLibrary[[#This Row],[Title]])),0,1) -> 1 | K120: =IF(TblLibrary[[#This Row],[Selected]]=1,MAX($K$20:K119)+1,"") -> 97
D121: MrExcel | E121: Charts & Charting | F121: MrExcel's Learn Excel #373 - Charting Magnitude | G121: http://www.youtube.com/watch?v=FF6_UHH9pS4&list=PLE4E028E846F8084A | H121: =LEFT(TblLibrary[[#This Row],[LinkWithPlaylist]],FIND("&",TblLibrary[[#This Row],[LinkWithPlaylist]])-1) -> http://www.youtube.com/watch?v=FF6_UHH9pS4 | I121: =SUBSTITUTE(SUBSTITUTE(TblLibrary[[#This Row],[LinkToVideo]],"watch?",""),"v=","v/") -> http://www.youtube.com/v/FF6_UHH9pS4 | J121: =IF(ISERROR(SEARCH(KeyWord,TblLibrary[[#This Row],[Title]])),0,1) -> 1 | K121: =IF(TblLibrary[[#This Row],[Selected]]=1,MAX($K$20:K120)+1,"") -> 98
D122: MrExcel | E122: Charts & Charting | F122: MrExcel's Learn Excel #372 - Custom Charts | G122: http://www.youtube.com/watch?v=hsEyNovWo6k&list=PLE4E028E846F8084A | H122: =LEFT(TblLibrary[[#This Row],[LinkWithPlaylist]],FIND("&",TblLibrary[[#This Row],[LinkWithPlaylist]])-1) -> http://www.youtube.com/watch?v=hsEyNovWo6k | I122: =SUBSTITUTE(SUBSTITUTE(TblLibrary[[#This Row],[LinkToVideo]],"watch?",""),"v=","v/") -> http://www.youtube.com/v/hsEyNovWo6k | J122: =IF(ISERROR(SEARCH(KeyWord,TblLibrary[[#This Row],[Title]])),0,1) -> 1 | K122: =IF(TblLibrary[[#This Row],[Selected]]=1,MAX($K$20:K121)+1,"") -> 99
D123: MrExcel | E123: Charts & Charting | F123: Floating Quartile Chart - 1143 - Learn Excel Video Podcast | G123: http://www.youtube.com/watch?v=qDvBO6acuMY&list=PLE4E028E846F8084A | H123: =LEFT(TblLibrary[[#This Row],[LinkWithPlaylist]],FIND("&",TblLibrary[[#This Row],[LinkWithPlaylist]])-1) -> http://www.youtube.com/watch?v=qDvBO6acuMY | I123: =SUBSTITUTE(SUBSTITUTE(TblLibrary[[#This Row],[LinkToVideo]],"watch?",""),"v=","v/") -> http://www.youtube.com/v/qDvBO6acuMY | J123: =IF(ISERROR(SEARCH(KeyWord,TblLibrary[[#This Row],[Title]])),0,1) -> 1 | K123: =IF(TblLibrary[[#This Row],[Selected]]=1,MAX($K$20:K122)+1,"") -> 100
D124: MrExcel | E124: Charts & Charting | F124: Red Data Labels - 1147 - Learn Excel from MrExcel Podcast | G124: http://www.youtube.com/watch?v=_jINweBu0fM&list=PLE4E028E846F8084A | H124: =LEFT(TblLibrary[[#This Row],[LinkWithPlaylist]],FIND("&",TblLibrary[[#This Row],[LinkWithPlaylist]])-1) -> http://www.youtube.com/watch?v=_jINweBu0fM | I124: =SUBSTITUTE(SUBSTITUTE(TblLibrary[[#This Row],[LinkToVideo]],"watch?",""),"v=","v/") -> http://www.youtube.com/v/_jINweBu0fM | J124: =IF(ISERROR(SEARCH(KeyWord,TblLibrary[[#This Row],[Title]])),0,1) -> 1 | K124: =IF(TblLibrary[[#This Row],[Selected]]=1,MAX($K$20:K123)+1,"") -> 101
D125: MrExcel | E125: Charts & Charting | F125: Pivot Tag Cloud & Smart Art | G125: http://www.youtube.com/watch?v=fgfwSEBXQCM&list=PLE4E028E846F8084A | H125: =LEFT(TblLibrary[[#This Row],[LinkWithPlaylist]],FIND("&",TblLibrary[[#This Row],[LinkWithPlaylist]])-1) -> http://www.youtube.com/watch?v=fgfwSEBXQCM | I125: =SUBSTITUTE(SUBSTITUTE(TblLibrary[[#This Row],[LinkToVideo]],"watch?",""),"v=","v/") -> http://www.youtube.com/v/fgfwSEBXQCM | J125: =IF(ISERROR(SEARCH(KeyWord,TblLibrary[[#This Row],[Title]])),0,1) -> 1 | K125: =IF(TblLibrary[[#This Row],[Selected]]=1,MAX($K$20:K124)+1,"") -> 102
D126: MrExcel | E126: Charts & Charting | F126: Excel Charts 1 - Series Order | G126: http://www.youtube.com/watch?v=vKTW_E7-ODE&list=PLE4E028E846F8084A | H126: =LEFT(TblLibrary[[#This Row],[LinkWithPlaylist]],FIND("&",TblLibrary[[#This Row],[LinkWithPlaylist]])-1) -> http://www.youtube.com/watch?v=vKTW_E7-ODE | I126: =SUBSTITUTE(SUBSTITUTE(TblLibrary[[#This Row],[LinkToVideo]],"watch?",""),"v=","v/") -> http://www.youtube.com/v/vKTW_E7-ODE | J126: =IF(ISERROR(SEARCH(KeyWord,TblLibrary[[#This Row],[Title]])),0,1) -> 1 | K126: =IF(TblLibrary[[#This Row],[Selected]]=1,MAX($K$20:K125)+1,"") -> 103
D127: MrExcel | E127: Charts & Charting | F127: Excel Charts 7 - Column & Line Chart | G127: http://www.youtube.com/watch?v=eXqK26zBHW4&list=PLE4E028E846F8084A | H127: =LEFT(TblLibrary[[#This Row],[LinkWithPlaylist]],FIND("&",TblLibrary[[#This Row],[LinkWithPlaylist]])-1) -> http://www.youtube.com/watch?v=eXqK26zBHW4 | I127: =SUBSTITUTE(SUBSTITUTE(TblLibrary[[#This Row],[LinkToVideo]],"watch?",""),"v=","v/") -> http://www.youtube.com/v/eXqK26zBHW4 | J127: =IF(ISERROR(SEARCH(KeyWord,TblLibrary[[#This Row],[Title]])),0,1) -> 1 | K127: =IF(TblLibrary[[#This Row],[Selected]]=1,MAX($K$20:K126)+1,"") -> 104
D128: MrExcel | E128: Charts & Charting | F128: Excel Charts 6 - High/Low Lines | G128: http://www.youtube.com/watch?v=DHHMY-X8KJA&list=PLE4E028E846F8084A | H128: =LEFT(TblLibrary[[#This Row],[LinkWithPlaylist]],FIND("&",TblLibrary[[#This Row],[LinkWithPlaylist]])-1) -> http://www.youtube.com/watch?v=DHHMY-X8KJA | I128: =SUBSTITUTE(SUBSTITUTE(TblLibrary[[#This Row],[LinkToVideo]],"watch?",""),"v=","v/") -> http://www.youtube.com/v/DHHMY-X8KJA | J128: =IF(ISERROR(SEARCH(KeyWord,TblLibrary[[#This Row],[Title]])),0,1) -> 1 | K128: =IF(TblLibrary[[#This Row],[Selected]]=1,MAX($K$20:K127)+1,"") -> 105
D129: MrExcel | E129: Charts & Charting | F129: Excel Charts 2 - Use Shapes for Markers | G129: http://www.youtube.com/watch?v=-DmQTYVELfw&list=PLE4E028E846F8084A | H129: =LEFT(TblLibrary[[#This Row],[LinkWithPlaylist]],FIND("&",TblLibrary[[#This Row],[LinkWithPlaylist]])-1) -> http://www.youtube.com/watch?v=-DmQTYVELfw | I129: =SUBSTITUTE(SUBSTITUTE(TblLibrary[[#This Row],[LinkToVideo]],"watch?",""),"v=","v/") -> http://www.youtube.com/v/-DmQTYVELfw | J129: =IF(ISERROR(SEARCH(KeyWord,TblLibrary[[#This Row],[Title]])),0,1) -> 1 | K129: =IF(TblLibrary[[#This Row],[Selected]]=1,MAX($K$20:K128)+1,"") -> 106
D130: MrExcel | E130: Charts & Charting | F130: Learn Excel - Set Up Data for Charting: Podcast #1405 | G130: http://www.youtube.com/watch?v=V2KK9gv1ApI&list=PLE4E028E846F8084A&index=80 | H130: =LEFT(TblLibrary[[#This Row],[LinkWithPlaylist]],FIND("&",TblLibrary[[#This Row],[LinkWithPlaylist]])-1) -> http://www.youtube.com/watch?v=V2KK9gv1ApI | I130: =SUBSTITUTE(SUBSTITUTE(TblLibrary[[#This Row],[LinkToVideo]],"watch?",""),"v=","v/") -> http://www.youtube.com/v/V2KK9gv1ApI | J130: =IF(ISERROR(SEARCH(KeyWord,TblLibrary[[#This Row],[Title]])),0,1) -> 1 | K130: =IF(TblLibrary[[#This Row],[Selected]]=1,MAX($K$20:K129)+1,"") -> 107
D131: MrExcel | E131: Charts & Charting | F131: Learn Excel - Change The Chart Scale: Podcast #1407 | G131: http://www.youtube.com/watch?v=GVekN70-qWI&list=PLE4E028E846F8084A | H131: =LEFT(TblLibrary[[#This Row],[LinkWithPlaylist]],FIND("&",TblLibrary[[#This Row],[LinkWithPlaylist]])-1) -> http://www.youtube.com/watch?v=GVekN70-qWI | I131: =SUBSTITUTE(SUBSTITUTE(TblLibrary[[#This Row],[LinkToVideo]],"watch?",""),"v=","v/") -> http://www.youtube.com/v/GVekN70-qWI | J131: =IF(ISERROR(SEARCH(KeyWord,TblLibrary[[#This Row],[Title]])),0,1) -> 1 | K131: =IF(TblLibrary[[#This Row],[Selected]]=1,MAX($K$20:K130)+1,"") -> 108
D132: MrExcel | E132: Charts & Charting | F132: Learn Excel - Create The Chart: Podcast #1406 | G132: http://www.youtube.com/watch?v=wjE3top1Xnc&list=PLE4E028E846F8084A | H132: =LEFT(TblLibrary[[#This Row],[LinkWithPlaylist]],FIND("&",TblLibrary[[#This Row],[LinkWithPlaylist]])-1) -> http://www.youtube.com/watch?v=wjE3top1Xnc | I132: =SUBSTITUTE(SUBSTITUTE(TblLibrary[[#This Row],[LinkToVideo]],"watch?",""),"v=","v/") -> http://www.youtube.com/v/wjE3top1Xnc | J132: =IF(ISERROR(SEARCH(KeyWord,TblLibrary[[#This Row],[Title]])),0,1) -> 1 | K132: =IF(TblLibrary[[#This Row],[Selected]]=1,MAX($K$20:K131)+1,"") -> 109
D133: MrExcel | E133: Charts & Charting | F133: Learn Excel - Set Up Data for Charting: Podcast #1405 | G133: http://www.youtube.com/watch?v=V2KK9gv1ApI&list=PLE4E028E846F8084A&index=83 | H133: =LEFT(TblLibrary[[#This Row],[LinkWithPlaylist]],FIND("&",TblLibrary[[#This Row],[LinkWithPlaylist]])-1) -> http://www.youtube.com/watch?v=V2KK9gv1ApI | I133: =SUBSTITUTE(SUBSTITUTE(TblLibrary[[#This Row],[LinkToVideo]],"watch?",""),"v=","v/") -> http://www.youtube.com/v/V2KK9gv1ApI | J133: =IF(ISERROR(SEARCH(KeyWord,TblLibrary[[#This Row],[Title]])),0,1) -> 1 | K133: =IF(TblLibrary[[#This Row],[Selected]]=1,MAX($K$20:K132)+1,"") -> 110
D134: MrExcel | E134: Charts & Charting | F134: Learn Excel - Chart Title, Legend, Colors: Podcast #1408 | G134: http://www.youtube.com/watch?v=W4YA7RzsIZI&list=PLE4E028E846F8084A | H134: =LEFT(TblLibrary[[#This Row],[LinkWithPlaylist]],FIND("&",TblLibrary[[#This Row],[LinkWithPlaylist]])-1) -> http://www.youtube.com/watch?v=W4YA7RzsIZI | I134: =SUBSTITUTE(SUBSTITUTE(TblLibrary[[#This Row],[LinkToVideo]],"watch?",""),"v=","v/") -> http://www.youtube.com/v/W4YA7RzsIZI | J134: =IF(ISERROR(SEARCH(KeyWord,TblLibrary[[#This Row],[Title]])),0,1) -> 1 | K134: =IF(TblLibrary[[#This Row],[Selected]]=1,MAX($K$20:K133)+1,"") -> 111
D135: MrExcel | E135: Charts and Graphs Excel 2010 | F135: Excel Charts 2 - Use Shapes for Markers | G135: http://www.youtube.com/watch?v=-DmQTYVELfw&list=PL9537B02656EC11CA | H135: =LEFT(TblLibrary[[#This Row],[LinkWithPlaylist]],FIND("&",TblLibrary[[#This Row],[LinkWithPlaylist]])-1) -> http://www.youtube.com/watch?v=-DmQTYVELfw | I135: =SUBSTITUTE(SUBSTITUTE(TblLibrary[[#This Row],[LinkToVideo]],"watch?",""),"v=","v/") -> http://www.youtube.com/v/-DmQTYVELfw | J135: =IF(ISERROR(SEARCH(KeyWord,TblLibrary[[#This Row],[Title]])),0,1) -> 1 | K135: =IF(TblLibrary[[#This Row],[Selected]]=1,MAX($K$20:K134)+1,"") -> 112
D136: MrExcel | E136: Charts and Graphs Excel 2010 | F136: Excel Charts 3 - Converting to Dates | G136: http://www.youtube.com/watch?v=2eNyYCgClQU&list=PL9537B02656EC11CA | H136: =LEFT(TblLibrary[[#This Row],[LinkWithPlaylist]],FIND("&",TblLibrary[[#This Row],[LinkWithPlaylist]])-1) -> http://www.youtube.com/watch?v=2eNyYCgClQU | I136: =SUBSTITUTE(SUBSTITUTE(TblLibrary[[#This Row],[LinkToVideo]],"watch?",""),"v=","v/") -> http://www.youtube.com/v/2eNyYCgClQU | J136: =IF(ISERROR(SEARCH(KeyWord,TblLibrary[[#This Row],[Title]])),0,1) -> 1 | K136: =IF(TblLibrary[[#This Row],[Selected]]=1,MAX($K$20:K135)+1,"") -> 113
D137: MrExcel | E137: Charts and Graphs Excel 2010 | F137: Excel Charts 4 - Too Many Pie Slices | G137: http://www.youtube.com/watch?v=TGz_fRSDlTE&list=PL9537B02656EC11CA | H137: =LEFT(TblLibrary[[#This Row],[LinkWithPlaylist]],FIND("&",TblLibrary[[#This Row],[LinkWithPlaylist]])-1) -> http://www.youtube.com/watch?v=TGz_fRSDlTE | I137: =SUBSTITUTE(SUBSTITUTE(TblLibrary[[#This Row],[LinkToVideo]],"watch?",""),"v=","v/") -> http://www.youtube.com/v/TGz_fRSDlTE | J137: =IF(ISERROR(SEARCH(KeyWord,TblLibrary[[#This Row],[Title]])),0,1) -> 1 | K137: =IF(TblLibrary[[#This Row],[Selected]]=1,MAX($K$20:K136)+1,"") -> 114
D138: MrExcel | E138: Charts and Graphs Excel 2010 | F138: Excel Charts 5 - Paired Bar Charts | G138: http://www.youtube.com/watch?v=vfUu9vNRDNc&list=PL9537B02656EC11CA | H138: =LEFT(TblLibrary[[#This Row],[LinkWithPlaylist]],FIND("&",TblLibrary[[#This Row],[LinkWithPlaylist]])-1) -> http://www.youtube.com/watch?v=vfUu9vNRDNc | I138: =SUBSTITUTE(SUBSTITUTE(TblLibrary[[#This Row],[LinkToVideo]],"watch?",""),"v=","v/") -> http://www.youtube.com/v/vfUu9vNRDNc | J138: =IF(ISERROR(SEARCH(KeyWord,TblLibrary[[#This Row],[Title]])),0,1) -> 1 | K138: =IF(TblLibrary[[#This Row],[Selected]]=1,MAX($K$20:K137)+1,"") -> 115
D139: MrExcel | E139: Charts and Graphs Excel 2010 | F139: Excel Charts 6 - High/Low Lines | G139: http://www.youtube.com/watch?v=DHHMY-X8KJA&list=PL9537B02656EC11CA | H139: =LEFT(TblLibrary[[#This Row],[LinkWithPlaylist]],FIND("&",TblLibrary[[#This Row],[LinkWithPlaylist]])-1) -> http://www.youtube.com/watch?v=DHHMY-X8KJA | I139: =SUBSTITUTE(SUBSTITUTE(TblLibrary[[#This Row],[LinkToVideo]],"watch?",""),"v=","v/") -> http://www.youtube.com/v/DHHMY-X8KJA | J139: =IF(ISERROR(SEARCH(KeyWord,TblLibrary[[#This Row],[Title]])),0,1) -> 1 | K139: =IF(TblLibrary[[#This Row],[Selected]]=1,MAX($K$20:K138)+1,"") -> 116
D140: MrExcel | E140: Charts and Graphs Excel 2010 | F140: Excel Charts 8 - Chart for Each | G140: http://www.youtube.com/watch?v=2HxBz2rLzOU&list=PL9537B02656EC11CA | H140: =LEFT(TblLibrary[[#This Row],[LinkWithPlaylist]],FIND("&",TblLibrary[[#This Row],[LinkWithPlaylist]])-1) -> http://www.youtube.com/watch?v=2HxBz2rLzOU | I140: =SUBSTITUTE(SUBSTITUTE(TblLibrary[[#This Row],[LinkToVideo]],"watch?",""),"v=","v/") -> http://www.youtube.com/v/2HxBz2rLzOU | J140: =IF(ISERROR(SEARCH(KeyWord,TblLibrary[[#This Row],[Title]])),0,1) -> 1 | K140: =IF(TblLibrary[[#This Row],[Selected]]=1,MAX($K$20:K139)+1,"") -> 117
D141: MrExcel | E141: Charts and Graphs Excel 2010 | F141: Excel Charts 9 - REPT Charts | G141: http://www.youtube.com/watch?v=82GMRUtxppo&list=PL9537B02656EC11CA | H141: =LEFT(TblLibrary[[#This Row],[LinkWithPlaylist]],FIND("&",TblLibrary[[#This Row],[LinkWithPlaylist]])-1) -> http://www.youtube.com/watch?v=82GMRUtxppo | I141: =SUBSTITUTE(SUBSTITUTE(TblLibrary[[#This Row],[LinkToVideo]],"watch?",""),"v=","v/") -> http://www.youtube.com/v/82GMRUtxppo | J141: =IF(ISERROR(SEARCH(KeyWord,TblLibrary[[#This Row],[Title]])),0,1) -> 1 | K141: =IF(TblLibrary[[#This Row],[Selected]]=1,MAX($K$20:K140)+1,"") -> 118
D142: MrExcel | E142: Charts and Graphs Excel 2010 | F142: Excel Charts 10 - Mapping Data | G142: http://www.youtube.com/watch?v=2eHaMcpOXpQ&list=PL9537B02656EC11CA | H142: =LEFT(TblLibrary[[#This Row],[LinkWithPlaylist]],FIND("&",TblLibrary[[#This Row],[LinkWithPlaylist]])-1) -> http://www.youtube.com/watch?v=2eHaMcpOXpQ | I142: =SUBSTITUTE(SUBSTITUTE(TblLibrary[[#This Row],[LinkToVideo]],"watch?",""),"v=","v/") -> http://www.youtube.com/v/2eHaMcpOXpQ | J142: =IF(ISERROR(SEARCH(KeyWord,TblLibrary[[#This Row],[Title]])),0,1) -> 1 | K142: =IF(TblLibrary[[#This Row],[Selected]]=1,MAX($K$20:K141)+1,"") -> 119
D143: MrExcel | E143: Charts and Graphs Excel 2010 | F143: Excel Charts 11 - Shape Formula | G143: http://www.youtube.com/watch?v=_GxTff8kWaM&list=PL9537B02656EC11CA | H143: =LEFT(TblLibrary[[#This Row],[LinkWithPlaylist]],FIND("&",TblLibrary[[#This Row],[LinkWithPlaylist]])-1) -> http://www.youtube.com/watch?v=_GxTff8kWaM | I143: =SUBSTITUTE(SUBSTITUTE(TblLibrary[[#This Row],[LinkToVideo]],"watch?",""),"v=","v/") -> http://www.youtube.com/v/_GxTff8kWaM | J143: =IF(ISERROR(SEARCH(KeyWord,TblLibrary[[#This Row],[Title]])),0,1) -> 1 | K143: =IF(TblLibrary[[#This Row],[Selected]]=1,MAX($K$20:K142)+1,"") -> 120
D144: MrExcel | E144: Charts and Graphs Excel 2010 | F144: Excel Charts 12 - Screenshots | G144: http://www.youtube.com/watch?v=peNqBNML6iA&list=PL9537B02656EC11CA | H144: =LEFT(TblLibrary[[#This Row],[LinkWithPlaylist]],FIND("&",TblLibrary[[#This Row],[LinkWithPlaylist]])-1) -> http://www.youtube.com/watch?v=peNqBNML6iA | I144: =SUBSTITUTE(SUBSTITUTE(TblLibrary[[#This Row],[LinkToVideo]],"watch?",""),"v=","v/") -> http://www.youtube.com/v/peNqBNML6iA | J144: =IF(ISERROR(SEARCH(KeyWord,TblLibrary[[#This Row],[Title]])),0,1) -> 1 | K144: =IF(TblLibrary[[#This Row],[Selected]]=1,MAX($K$20:K143)+1,"") -> 121
D145: MrExcel | E145: Charts and Graphs Excel 2010 | F145: Excel Charts 14 - Future Zeroes | G145: http://www.youtube.com/watch?v=aRNsw6ZFxaY&list=PL9537B02656EC11CA | H145: =LEFT(TblLibrary[[#This Row],[LinkWithPlaylist]],FIND("&",TblLibrary[[#This Row],[LinkWithPlaylist]])-1) -> http://www.youtube.com/watch?v=aRNsw6ZFxaY | I145: =SUBSTITUTE(SUBSTITUTE(TblLibrary[[#This Row],[LinkToVideo]],"watch?",""),"v=","v/") -> http://www.youtube.com/v/aRNsw6ZFxaY | J145: =IF(ISERROR(SEARCH(KeyWord,TblLibrary[[#This Row],[Title]])),0,1) -> 1 | K145: =IF(TblLibrary[[#This Row],[Selected]]=1,MAX($K$20:K144)+1,"") -> 122
D146: MrExcel | E146: Charts and Graphs Excel 2010 | F146: Learn Excel - Set Up Data for Charting: Podcast #1405 | G146: http://www.youtube.com/watch?v=V2KK9gv1ApI&list=PL9537B02656EC11CA&index=12 | H146: =LEFT(TblLibrary[[#This Row],[LinkWithPlaylist]],FIND("&",TblLibrary[[#This Row],[LinkWithPlaylist]])-1) -> http://www.youtube.com/watch?v=V2KK9gv1ApI | I146: =SUBSTITUTE(SUBSTITUTE(TblLibrary[[#This Row],[LinkToVideo]],"watch?",""),"v=","v/") -> http://www.youtube.com/v/V2KK9gv1ApI | J146: =IF(ISERROR(SEARCH(KeyWord,TblLibrary[[#This Row],[Title]])),0,1) -> 1 | K146: =IF(TblLibrary[[#This Row],[Selected]]=1,MAX($K$20:K145)+1,"") -> 123
D147: MrExcel | E147: Charts and Graphs Excel 2010 | F147: Learn Excel - Change The Chart Scale: Podcast #1407 | G147: http://www.youtube.com/watch?v=GVekN70-qWI&list=PL9537B02656EC11CA | H147: =LEFT(TblLibrary[[#This Row],[LinkWithPlaylist]],FIND("&",TblLibrary[[#This Row],[LinkWithPlaylist]])-1) -> http://www.youtube.com/watch?v=GVekN70-qWI | I147: =SUBSTITUTE(SUBSTITUTE(TblLibrary[[#This Row],[LinkToVideo]],"watch?",""),"v=","v/") -> http://www.youtube.com/v/GVekN70-qWI | J147: =IF(ISERROR(SEARCH(KeyWord,TblLibrary[[#This Row],[Title]])),0,1) -> 1 | K147: =IF(TblLibrary[[#This Row],[Selected]]=1,MAX($K$20:K146)+1,"") -> 124
D148: MrExcel | E148: Charts and Graphs Excel 2010 | F148: Learn Excel - Create The Chart: Podcast #1406 | G148: http://www.youtube.com/watch?v=wjE3top1Xnc&list=PL9537B02656EC11CA | H148: =LEFT(TblLibrary[[#This Row],[LinkWithPlaylist]],FIND("&",TblLibrary[[#This Row],[LinkWithPlaylist]])-1) -> http://www.youtube.com/watch?v=wjE3top1Xnc | I148: =SUBSTITUTE(SUBSTITUTE(TblLibrary[[#This Row],[LinkToVideo]],"watch?",""),"v=","v/") -> http://www.youtube.com/v/wjE3top1Xnc | J148: =IF(ISERROR(SEARCH(KeyWord,TblLibrary[[#This Row],[Title]])),0,1) -> 1 | K148: =IF(TblLibrary[[#This Row],[Selected]]=1,MAX($K$20:K147)+1,"") -> 125
D149: MrExcel | E149: Charts and Graphs Excel 2010 | F149: Learn Excel - Set Up Data for Charting: Podcast #1405 | G149: http://www.youtube.com/watch?v=V2KK9gv1ApI&list=PL9537B02656EC11CA&index=15 | H149: =LEFT(TblLibrary[[#This Row],[LinkWithPlaylist]],FIND("&",TblLibrary[[#This Row],[LinkWithPlaylist]])-1) -> http://www.youtube.com/watch?v=V2KK9gv1ApI | I149: =SUBSTITUTE(SUBSTITUTE(TblLibrary[[#This Row],[LinkToVideo]],"watch?",""),"v=","v/") -> http://www.youtube.com/v/V2KK9gv1ApI | J149: =IF(ISERROR(SEARCH(KeyWord,TblLibrary[[#This Row],[Title]])),0,1) -> 1 | K149: =IF(TblLibrary[[#This Row],[Selected]]=1,MAX($K$20:K148)+1,"") -> 126
D150: MrExcel | E150: Charts and Graphs Excel 2010 | F150: Learn Excel - Chart Title, Legend, Colors: Podcast #1408 | G150: http://www.youtube.com/watch?v=W4YA7RzsIZI&list=PL9537B02656EC11CA | H150: =LEFT(TblLibrary[[#This Row],[LinkWithPlaylist]],FIND("&",TblLibrary[[#This Row],[LinkWithPlaylist]])-1) -> http://www.youtube.com/watch?v=W4YA7RzsIZI | I150: =SUBSTITUTE(SUBSTITUTE(TblLibrary[[#This Row],[LinkToVideo]],"watch?",""),"v=","v/") -> http://www.youtube.com/v/W4YA7RzsIZI | J150: =IF(ISERROR(SEARCH(KeyWord,TblLibrary[[#This Row],[Title]])),0,1) -> 1 | K150: =IF(TblLibrary[[#This Row],[Selected]]=1,MAX($K$20:K149)+1,"") -> 127
D151: MrExcel | E151: Dates and Times | F151: Fiscal Quarter UDF - 1033 - Learn Excel from MrExcel Podcast | G151: http://www.youtube.com/watch?v=zNOjgAFfvCc&list=PLC92025CFC4923948 | H151: =LEFT(TblLibrary[[#This Row],[LinkWithPlaylist]],FIND("&",TblLibrary[[#This Row],[LinkWithPlaylist]])-1) -> http://www.youtube.com/watch?v=zNOjgAFfvCc | I151: =SUBSTITUTE(SUBSTITUTE(TblLibrary[[#This Row],[LinkToVideo]],"watch?",""),"v=","v/") -> http://www.youtube.com/v/zNOjgAFfvCc | J151: =IF(ISERROR(SEARCH(KeyWord,TblLibrary[[#This Row],[Title]])),0,1) -> 1 | K151: =IF(TblLibrary[[#This Row],[Selected]]=1,MAX($K$20:K150)+1,"") -> 128
D152: MrExcel | E152: Dates and Times | F152: Coercing Dates - 1019 - Learn Excel from MrExcel Podcast | G152: http://www.youtube.com/watch?v=dvOw_u4Qgy8&list=PLC92025CFC4923948 | H152: =LEFT(TblLibrary[[#This Row],[LinkWithPlaylist]],FIND("&",TblLibrary[[#This Row],[LinkWithPlaylist]])-1) -> http://www.youtube.com/watch?v=dvOw_u4Qgy8 | I152: =SUBSTITUTE(SUBSTITUTE(TblLibrary[[#This Row],[LinkToVideo]],"watch?",""),"v=","v/") -> http://www.youtube.com/v/dvOw_u4Qgy8 | J152: =IF(ISERROR(SEARCH(KeyWord,TblLibrary[[#This Row],[Title]])),0,1) -> 1 | K152: =IF(TblLibrary[[#This Row],[Selected]]=1,MAX($K$20:K151)+1,"") -> 129
D153: MrExcel | E153: Dates and Times | F153: Fiscal Quarters - 1012 - Learn Excel from MrExcel Podcast | G153: http://www.youtube.com/watch?v=sqO8knXFmtc&list=PLC92025CFC4923948 | H153: =LEFT(TblLibrary[[#This Row],[LinkWithPlaylist]],FIND("&",TblLibrary[[#This Row],[LinkWithPlaylist]])-1) -> http://www.youtube.com/watch?v=sqO8knXFmtc | I153: =SUBSTITUTE(SUBSTITUTE(TblLibrary[[#This Row],[LinkToVideo]],"watch?",""),"v=","v/") -> http://www.youtube.com/v/sqO8knXFmtc | J153: =IF(ISERROR(SEARCH(KeyWord,TblLibrary[[#This Row],[Title]])),0,1) -> 1 | K153: =IF(TblLibrary[[#This Row],[Selected]]=1,MAX($K$20:K152)+1,"") -> 130
D154: MrExcel | E154: Dates and Times | F154: MrExcel's Learn Excel #986 - Rounding NOW() | G154: http://www.youtube.com/watch?v=5OVpWaMBSIk&list=PLC92025CFC4923948 | H154: =LEFT(TblLibrary[[#This Row],[LinkWithPlaylist]],FIND("&",TblLibrary[[#This Row],[LinkWithPlaylist]])-1) -> http://www.youtube.com/watch?v=5OVpWaMBSIk | I154: =SUBSTITUTE(SUBSTITUTE(TblLibrary[[#This Row],[LinkToVideo]],"watch?",""),"v=","v/") -> http://www.youtube.com/v/5OVpWaMBSIk | J154: =IF(ISERROR(SEARCH(KeyWord,TblLibrary[[#This Row],[Title]])),0,1) -> 1 | K154: =IF(TblLibrary[[#This Row],[Selected]]=1,MAX($K$20:K153)+1,"") -> 131
D155: MrExcel | E155: Dates and Times | F155: MrExcel's Learn Excel #964 - Thu Mar 5, 2009 | G155: http://www.youtube.com/watch?v=LKxwsRtLFk4&list=PLC92025CFC4923948 | H155: =LEFT(TblLibrary[[#This Row],[LinkWithPlaylist]],FIND("&",TblLibrary[[#This Row],[LinkWithPlaylist]])-1) -> http://www.youtube.com/watch?v=LKxwsRtLFk4 | I155: =SUBSTITUTE(SUBSTITUTE(TblLibrary[[#This Row],[LinkToVideo]],"watch?",""),"v=","v/") -> http://www.youtube.com/v/LKxwsRtLFk4 | J155: =IF(ISERROR(SEARCH(KeyWord,TblLibrary[[#This Row],[Title]])),0,1) -> 1 | K155: =IF(TblLibrary[[#This Row],[Selected]]=1,MAX($K$20:K154)+1,"") -> 132
D156: MrExcel | E156: Dates and Times | F156: MrExcel's Learn Excel #947 - Wrong Date Format | G156: http://www.youtube.com/watch?v=9RTOxeM86x0&list=PLC92025CFC4923948 | H156: =LEFT(TblLibrary[[#This Row],[LinkWithPlaylist]],FIND("&",TblLibrary[[#This Row],[LinkWithPlaylist]])-1) -> http://www.youtube.com/watch?v=9RTOxeM86x0 | I156: =SUBSTITUTE(SUBSTITUTE(TblLibrary[[#This Row],[LinkToVideo]],"watch?",""),"v=","v/") -> http://www.youtube.com/v/9RTOxeM86x0 | J156: =IF(ISERROR(SEARCH(KeyWord,TblLibrary[[#This Row],[Title]])),0,1) -> 1 | K156: =IF(TblLibrary[[#This Row],[Selected]]=1,MAX($K$20:K155)+1,"") -> 133
D157: MrExcel | E157: Dates and Times | F157: MrExcel's Learn Excel #752 - Truncating to Date | G157: http://www.youtube.com/watch?v=-AnPOP-943E&list=PLC92025CFC4923948 | H157: =LEFT(TblLibrary[[#This Row],[LinkWithPlaylist]],FIND("&",TblLibrary[[#This Row],[LinkWithPlaylist]])-1) -> http://www.youtube.com/watch?v=-AnPOP-943E | I157: =SUBSTITUTE(SUBSTITUTE(TblLibrary[[#This Row],[LinkToVideo]],"watch?",""),"v=","v/") -> http://www.youtube.com/v/-AnPOP-943E | J157: =IF(ISERROR(SEARCH(KeyWord,TblLibrary[[#This Row],[Title]])),0,1) -> 1 | K157: =IF(TblLibrary[[#This Row],[Selected]]=1,MAX($K$20:K156)+1,"") -> 134
D158: MrExcel | E158: Dates and Times | F158: MrExcel's Learn Excel #710 - Pivot Filters | G158: http://www.youtube.com/watch?v=cG6_8aIsjOU&list=PLC92025CFC4923948 | H158: =LEFT(TblLibrary[[#This Row],[LinkWithPlaylist]],FIND("&",TblLibrary[[#This Row],[LinkWithPlaylist]])-1) -> http://www.youtube.com/watch?v=cG6_8aIsjOU | I158: =SUBSTITUTE(SUBSTITUTE(TblLibrary[[#This Row],[LinkToVideo]],"watch?",""),"v=","v/") -> http://www.youtube.com/v/cG6_8aIsjOU | J158: =IF(ISERROR(SEARCH(KeyWord,TblLibrary[[#This Row],[Title]])),0,1) -> 1 | K158: =IF(TblLibrary[[#This Row],[Selected]]=1,MAX($K$20:K157)+1,"") -> 135
D159: MrExcel | E159: Dates and Times | F159: MrExcel's Learn Excel #709 - Pivot Dates | G159: http://www.youtube.com/watch?v=lrs7vMzwxgM&list=PLC92025CFC4923948 | H159: =LEFT(TblLibrary[[#This Row],[LinkWithPlaylist]],FIND("&",TblLibrary[[#This Row],[LinkWithPlaylist]])-1) -> http://www.youtube.com/watch?v=lrs7vMzwxgM | I159: =SUBSTITUTE(SUBSTITUTE(TblLibrary[[#This Row],[LinkToVideo]],"watch?",""),"v=","v/") -> http://www.youtube.com/v/lrs7vMzwxgM | J159: =IF(ISERROR(SEARCH(KeyWord,TblLibrary[[#This Row],[Title]])),0,1) -> 1 | K159: =IF(TblLibrary[[#This Row],[Selected]]=1,MAX($K$20:K158)+1,"") -> 136
D160: MrExcel | E160: Dates and Times | F160: MrExcel's Learn Excel #688 - Month End | G160: http://www.youtube.com/watch?v=Hi-_MgjV9I0&list=PLC92025CFC4923948 | H160: =LEFT(TblLibrary[[#This Row],[LinkWithPlaylist]],FIND("&",TblLibrary[[#This Row],[LinkWithPlaylist]])-1) -> http://www.youtube.com/watch?v=Hi-_MgjV9I0 | I160: =SUBSTITUTE(SUBSTITUTE(TblLibrary[[#This Row],[LinkToVideo]],"watch?",""),"v=","v/") -> http://www.youtube.com/v/Hi-_MgjV9I0 | J160: =IF(ISERROR(SEARCH(KeyWord,TblLibrary[[#This Row],[Title]])),0,1) -> 1 | K160: =IF(TblLibrary[[#This Row],[Selected]]=1,MAX($K$20:K159)+1,"") -> 137
D161: MrExcel | E161: Dates and Times | F161: MrExcel's Learn Excel #592 - Missing Pivot Dates | G161: http://www.youtube.com/watch?v=R2XAQhyiV24&list=PLC92025CFC4923948 | H161: =LEFT(TblLibrary[[#This Row],[LinkWithPlaylist]],FIND("&",TblLibrary[[#This Row],[LinkWithPlaylist]])-1) -> http://www.youtube.com/watch?v=R2XAQhyiV24 | I161: =SUBSTITUTE(SUBSTITUTE(TblLibrary[[#This Row],[LinkToVideo]],"watch?",""),"v=","v/") -> http://www.youtube.com/v/R2XAQhyiV24 | J161: =IF(ISERROR(SEARCH(KeyWord,TblLibrary[[#This Row],[Title]])),0,1) -> 1 | K161: =IF(TblLibrary[[#This Row],[Selected]]=1,MAX($K$20:K160)+1,"") -> 138
D162: MrExcel | E162: Dates and Times | F162: MrExcel's Learn Excel #494 - Time Stripping | G162: http://www.youtube.com/watch?v=hEjCpIemM1g&list=PLC92025CFC4923948 | H162: =LEFT(TblLibrary[[#This Row],[LinkWithPlaylist]],FIND("&",TblLibrary[[#This Row],[LinkWithPlaylist]])-1) -> http://www.youtube.com/watch?v=hEjCpIemM1g | I162: =SUBSTITUTE(SUBSTITUTE(TblLibrary[[#This Row],[LinkToVideo]],"watch?",""),"v=","v/") -> http://www.youtube.com/v/hEjCpIemM1g | J162: =IF(ISERROR(SEARCH(KeyWord,TblLibrary[[#This Row],[Title]])),0,1) -> 1 | K162: =IF(TblLibrary[[#This Row],[Selected]]=1,MAX($K$20:K161)+1,"") -> 139
D163: MrExcel | E163: Dates and Times | F163: MrExcel's Learn Excel #480 - Text Dates | G163: http://www.youtube.com/watch?v=xNnQkHQeRNw&list=PLC92025CFC4923948 | H163: =LEFT(TblLibrary[[#This Row],[LinkWithPlaylist]],FIND("&",TblLibrary[[#This Row],[LinkWithPlaylist]])-1) -> http://www.youtube.com/watch?v=xNnQkHQeRNw | I163: =SUBSTITUTE(SUBSTITUTE(TblLibrary[[#This Row],[LinkToVideo]],"watch?",""),"v=","v/") -> http://www.youtube.com/v/xNnQkHQeRNw | J163: =IF(ISERROR(SEARCH(KeyWord,TblLibrary[[#This Row],[Title]])),0,1) -> 1 | K163: =IF(TblLibrary[[#This Row],[Selected]]=1,MAX($K$20:K162)+1,"") -> 140
D164: MrExcel | E164: Dates and Times | F164: MrExcel's Learn Excel #591 - Missing Dates | G164: http://www.youtube.com/watch?v=nkxSmUzgEJg&list=PLC92025CFC4923948 | H164: =LEFT(TblLibrary[[#This Row],[LinkWithPlaylist]],FIND("&",TblLibrary[[#This Row],[LinkWithPlaylist]])-1) -> http://www.youtube.com/watch?v=nkxSmUzgEJg | I164: =SUBSTITUTE(SUBSTITUTE(TblLibrary[[#This Row],[LinkToVideo]],"watch?",""),"v=","v/") -> http://www.youtube.com/v/nkxSmUzgEJg | J164: =IF(ISERROR(SEARCH(KeyWord,TblLibrary[[#This Row],[Title]])),0,1) -> 1 | K164: =IF(TblLibrary[[#This Row],[Selected]]=1,MAX($K$20:K163)+1,"") -> 141
D165: MrExcel | E165: Dates and Times | F165: MrExcel's Learn Excel #732 - Dates from Text to Columns | G165: http://www.youtube.com/watch?v=JPVxicSeAmo&list=PLC92025CFC4923948 | H165: =LEFT(TblLibrary[[#This Row],[LinkWithPlaylist]],FIND("&",TblLibrary[[#This Row],[LinkWithPlaylist]])-1) -> http://www.youtube.com/watch?v=JPVxicSeAmo | I165: =SUBSTITUTE(SUBSTITUTE(TblLibrary[[#This Row],[LinkToVideo]],"watch?",""),"v=","v/") -> http://www.youtube.com/v/JPVxicSeAmo | J165: =IF(ISERROR(SEARCH(KeyWord,TblLibrary[[#This Row],[Title]])),0,1) -> 1 | K165: =IF(TblLibrary[[#This Row],[Selected]]=1,MAX($K$20:K164)+1,"") -> 142
D166: MrExcel | E166: Dates and Times | F166: MrExcel's Learn Excel #751 - Grouping Dates | G166: http://www.youtube.com/watch?v=uze2piQS7lE&list=PLC92025CFC4923948 | H166: =LEFT(TblLibrary[[#This Row],[LinkWithPlaylist]],FIND("&",TblLibrary[[#This Row],[LinkWithPlaylist]])-1) -> http://www.youtube.com/watch?v=uze2piQS7lE | I166: =SUBSTITUTE(SUBSTITUTE(TblLibrary[[#This Row],[LinkToVideo]],"watch?",""),"v=","v/") -> http://www.youtube.com/v/uze2piQS7lE | J166: =IF(ISERROR(SEARCH(KeyWord,TblLibrary[[#This Row],[Title]])),0,1) -> 1 | K166: =IF(TblLibrary[[#This Row],[Selected]]=1,MAX($K$20:K165)+1,"") -> 143
D167: MrExcel | E167: Dates and Times | F167: Dates as Numbers - 447 - Learn Excel from MrExcel Podcast | G167: http://www.youtube.com/watch?v=BypNhoM9soM&list=PLC92025CFC4923948 | H167: =LEFT(TblLibrary[[#This Row],[LinkWithPlaylist]],FIND("&",TblLibrary[[#This Row],[LinkWithPlaylist]])-1) -> http://www.youtube.com/watch?v=BypNhoM9soM | I167: =SUBSTITUTE(SUBSTITUTE(TblLibrary[[#This Row],[LinkToVideo]],"watch?",""),"v=","v/") -> http://www.youtube.com/v/BypNhoM9soM | J167: =IF(ISERROR(SEARCH(KeyWord,TblLibrary[[#This Row],[Title]])),0,1) -> 1 | K167: =IF(TblLibrary[[#This Row],[Selected]]=1,MAX($K$20:K166)+1,"") -> 144
D168: MrExcel | E168: Dates and Times | F168: Virtual AutoFilters - 440 - Learn Excel from MrExcel Podcast | G168: http://www.youtube.com/watch?v=1H-x7j3chPM&list=PLC92025CFC4923948 | H168: =LEFT(TblLibrary[[#This Row],[LinkWithPlaylist]],FIND("&",TblLibrary[[#This Row],[LinkWithPlaylist]])-1) -> http://www.youtube.com/watch?v=1H-x7j3chPM | I168: =SUBSTITUTE(SUBSTITUTE(TblLibrary[[#This Row],[LinkToVideo]],"watch?",""),"v=","v/") -> http://www.youtube.com/v/1H-x7j3chPM | J168: =IF(ISERROR(SEARCH(KeyWord,TblLibrary[[#This Row],[Title]])),0,1) -> 1 | K168: =IF(TblLibrary[[#This Row],[Selected]]=1,MAX($K$20:K167)+1,"") -> 145
D169: MrExcel | E169: Dates and Times | F169: MrExcel's Learn Excel #489 - Non-Sorting Dates | G169: http://www.youtube.com/watch?v=RNqnPVb9coE&list=PLC92025CFC4923948 | H169: =LEFT(TblLibrary[[#This Row],[LinkWithPlaylist]],FIND("&",TblLibrary[[#This Row],[LinkWithPlaylist]])-1) -> http://www.youtube.com/watch?v=RNqnPVb9coE | I169: =SUBSTITUTE(SUBSTITUTE(TblLibrary[[#This Row],[LinkToVideo]],"watch?",""),"v=","v/") -> http://www.youtube.com/v/RNqnPVb9coE | J169: =IF(ISERROR(SEARCH(KeyWord,TblLibrary[[#This Row],[Title]])),0,1) -> 1 | K169: =IF(TblLibrary[[#This Row],[Selected]]=1,MAX($K$20:K168)+1,"") -> 146
D170: MrExcel | E170: Dates and Times | F170: MrExcel's Learn Excel #942 - First of Next Month | G170: http://www.youtube.com/watch?v=1p_9B_0gtIs&list=PLC92025CFC4923948 | H170: =LEFT(TblLibrary[[#This Row],[LinkWithPlaylist]],FIND("&",TblLibrary[[#This Row],[LinkWithPlaylist]])-1) -> http://www.youtube.com/watch?v=1p_9B_0gtIs | I170: =SUBSTITUTE(SUBSTITUTE(TblLibrary[[#This Row],[LinkToVideo]],"watch?",""),"v=","v/") -> http://www.youtube.com/v/1p_9B_0gtIs | J170: =IF(ISERROR(SEARCH(KeyWord,TblLibrary[[#This Row],[Title]])),0,1) -> 1 | K170: =IF(TblLibrary[[#This Row],[Selected]]=1,MAX($K$20:K169)+1,"") -> 147
D171: MrExcel | E171: Dates and Times | F171: MrExcel's Learn Excel #753 - Text Date/Time | G171: http://www.youtube.com/watch?v=l13dOBr1ODs&list=PLC92025CFC4923948 | H171: =LEFT(TblLibrary[[#This Row],[LinkWithPlaylist]],FIND("&",TblLibrary[[#This Row],[LinkWithPlaylist]])-1) -> http://www.youtube.com/watch?v=l13dOBr1ODs | I171: =SUBSTITUTE(SUBSTITUTE(TblLibrary[[#This Row],[LinkToVideo]],"watch?",""),"v=","v/") -> http://www.youtube.com/v/l13dOBr1ODs | J171: =IF(ISERROR(SEARCH(KeyWord,TblLibrary[[#This Row],[Title]])),0,1) -> 1 | K171: =IF(TblLibrary[[#This Row],[Selected]]=1,MAX($K$20:K170)+1,"") -> 148
D172: MrExcel | E172: Dates and Times | F172: MrExcel's Learn Excel #568 - Monthly Subtotals | G172: http://www.youtube.com/watch?v=heDJuTY95fY&list=PLC92025CFC4923948 | H172: =LEFT(TblLibrary[[#This Row],[LinkWithPlaylist]],FIND("&",TblLibrary[[#This Row],[LinkWithPlaylist]])-1) -> http://www.youtube.com/watch?v=heDJuTY95fY | I172: =SUBSTITUTE(SUBSTITUTE(TblLibrary[[#This Row],[LinkToVideo]],"watch?",""),"v=","v/") -> http://www.youtube.com/v/heDJuTY95fY | J172: =IF(ISERROR(SEARCH(KeyWord,TblLibrary[[#This Row],[Title]])),0,1) -> 1 | K172: =IF(TblLibrary[[#This Row],[Selected]]=1,MAX($K$20:K171)+1,"") -> 149
D173: MrExcel | E173: Dates and Times | F173: MrExcel's Learn Excel #560 - Negative Workdays | G173: http://www.youtube.com/watch?v=8wauyTo9in4&list=PLC92025CFC4923948 | H173: =LEFT(TblLibrary[[#This Row],[LinkWithPlaylist]],FIND("&",TblLibrary[[#This Row],[LinkWithPlaylist]])-1) -> http://www.youtube.com/watch?v=8wauyTo9in4 | I173: =SUBSTITUTE(SUBSTITUTE(TblLibrary[[#This Row],[LinkToVideo]],"watch?",""),"v=","v/") -> http://www.youtube.com/v/8wauyTo9in4 | J173: =IF(ISERROR(SEARCH(KeyWord,TblLibrary[[#This Row],[Title]])),0,1) -> 1 | K173: =IF(TblLibrary[[#This Row],[Selected]]=1,MAX($K$20:K172)+1,"") -> 150
D174: MrExcel | E174: Dates and Times | F174: MrExcel's Learn Excel #559 - Zeroth Day | G174: http://www.youtube.com/watch?v=tvczISaq9AU&list=PLC92025CFC4923948 | H174: =LEFT(TblLibrary[[#This Row],[LinkWithPlaylist]],FIND("&",TblLibrary[[#This Row],[LinkWithPlaylist]])-1) -> http://www.youtube.com/watch?v=tvczISaq9AU | I174: =SUBSTITUTE(SUBSTITUTE(TblLibrary[[#This Row],[LinkToVideo]],"watch?",""),"v=","v/") -> http://www.youtube.com/v/tvczISaq9AU | J174: =IF(ISERROR(SEARCH(KeyWord,TblLibrary[[#This Row],[Title]])),0,1) -> 1 | K174: =IF(TblLibrary[[#This Row],[Selected]]=1,MAX($K$20:K173)+1,"") -> 151
D175: MrExcel | E175: Dates and Times | F175: MrExcel's Learn Excel #540 - DATE EXTRADONAIRE | G175: http://www.youtube.com/watch?v=3KNPnkBOp7g&list=PLC92025CFC4923948 | H175: =LEFT(TblLibrary[[#This Row],[LinkWithPlaylist]],FIND("&",TblLibrary[[#This Row],[LinkWithPlaylist]])-1) -> http://www.youtube.com/watch?v=3KNPnkBOp7g | I175: =SUBSTITUTE(SUBSTITUTE(TblLibrary[[#This Row],[LinkToVideo]],"watch?",""),"v=","v/") -> http://www.youtube.com/v/3KNPnkBOp7g | J175: =IF(ISERROR(SEARCH(KeyWord,TblLibrary[[#This Row],[Title]])),0,1) -> 1 | K175: =IF(TblLibrary[[#This Row],[Selected]]=1,MAX($K$20:K174)+1,"") -> 152
D176: MrExcel | E176: Dates and Times | F176: MrExcel's Learn Excel #539 - Is it your birthday? | G176: http://www.youtube.com/watch?v=bAt4uoK65xg&list=PLC92025CFC4923948 | H176: =LEFT(TblLibrary[[#This Row],[LinkWithPlaylist]],FIND("&",TblLibrary[[#This Row],[LinkWithPlaylist]])-1) -> http://www.youtube.com/watch?v=bAt4uoK65xg | I176: =SUBSTITUTE(SUBSTITUTE(TblLibrary[[#This Row],[LinkToVideo]],"watch?",""),"v=","v/") -> http://www.youtube.com/v/bAt4uoK65xg | J176: =IF(ISERROR(SEARCH(KeyWord,TblLibrary[[#This Row],[Title]])),0,1) -> 1 | K176: =IF(TblLibrary[[#This Row],[Selected]]=1,MAX($K$20:K175)+1,"") -> 153
D177: MrExcel | E177: Dates and Times | F177: MrExcel's Learn Excel #524 - Final Saturday of Month | G177: http://www.youtube.com/watch?v=V7-nRcI9zuI&list=PLC92025CFC4923948 | H177: =LEFT(TblLibrary[[#This Row],[LinkWithPlaylist]],FIND("&",TblLibrary[[#This Row],[LinkWithPlaylist]])-1) -> http://www.youtube.com/watch?v=V7-nRcI9zuI | I177: =SUBSTITUTE(SUBSTITUTE(TblLibrary[[#This Row],[LinkToVideo]],"watch?",""),"v=","v/") -> http://www.youtube.com/v/V7-nRcI9zuI | J177: =IF(ISERROR(SEARCH(KeyWord,TblLibrary[[#This Row],[Title]])),0,1) -> 1 | K177: =IF(TblLibrary[[#This Row],[Selected]]=1,MAX($K$20:K176)+1,"") -> 154
D178: MrExcel | E178: Dates and Times | F178: Dueling: Random Date- 1095 -Learn Excel from MrExcel Podcast | G178: http://www.youtube.com/watch?v=d8WURrIqZbg&list=PLC92025CFC4923948 | H178: =LEFT(TblLibrary[[#This Row],[LinkWithPlaylist]],FIND("&",TblLibrary[[#This Row],[LinkWithPlaylist]])-1) -> http://www.youtube.com/watch?v=d8WURrIqZbg | I178: =SUBSTITUTE(SUBSTITUTE(TblLibrary[[#This Row],[LinkToVideo]],"watch?",""),"v=","v/") -> http://www.youtube.com/v/d8WURrIqZbg | J178: =IF(ISERROR(SEARCH(KeyWord,TblLibrary[[#This Row],[Title]])),0,1) -> 1 | K178: =IF(TblLibrary[[#This Row],[Selected]]=1,MAX($K$20:K177)+1,"") -> 155
D179: MrExcel | E179: Dates and Times | F179: Blank Row for Missing Dates- 1103 -Learn Excel from MrExcel | G179: http://www.youtube.com/watch?v=zktCVGfH1_k&list=PLC92025CFC4923948 | H179: =LEFT(TblLibrary[[#This Row],[LinkWithPlaylist]],FIND("&",TblLibrary[[#This Row],[LinkWithPlaylist]])-1) -> http://www.youtube.com/watch?v=zktCVGfH1_k | I179: =SUBSTITUTE(SUBSTITUTE(TblLibrary[[#This Row],[LinkToVideo]],"watch?",""),"v=","v/") -> http://www.youtube.com/v/zktCVGfH1_k | J179: =IF(ISERROR(SEARCH(KeyWord,TblLibrary[[#This Row],[Title]])),0,1) -> 1 | K179: =IF(TblLibrary[[#This Row],[Selected]]=1,MAX($K$20:K178)+1,"") -> 156
D180: MrExcel | E180: Dates and Times | F180: MrExcel's Learn Excel #507 - JanFebMar Conversion | G180: http://www.youtube.com/watch?v=kQ6tOOoQw2M&list=PLC92025CFC4923948 | H180: =LEFT(TblLibrary[[#This Row],[LinkWithPlaylist]],FIND("&",TblLibrary[[#This Row],[LinkWithPlaylist]])-1) -> http://www.youtube.com/watch?v=kQ6tOOoQw2M | I180: =SUBSTITUTE(SUBSTITUTE(TblLibrary[[#This Row],[LinkToVideo]],"watch?",""),"v=","v/") -> http://www.youtube.com/v/kQ6tOOoQw2M | J180: =IF(ISERROR(SEARCH(KeyWord,TblLibrary[[#This Row],[Title]])),0,1) -> 1 | K180: =IF(TblLibrary[[#This Row],[Selected]]=1,MAX($K$20:K179)+1,"") -> 157
D181: MrExcel | E181: Dates and Times | F181: MrExcel's Learn Excel #431- Fill Weekdays | G181: http://www.youtube.com/watch?v=VwUONYlD0hs&list=PLC92025CFC4923948 | H181: =LEFT(TblLibrary[[#This Row],[LinkWithPlaylist]],FIND("&",TblLibrary[[#This Row],[LinkWithPlaylist]])-1) -> http://www.youtube.com/watch?v=VwUONYlD0hs | I181: =SUBSTITUTE(SUBSTITUTE(TblLibrary[[#This Row],[LinkToVideo]],"watch?",""),"v=","v/") -> http://www.youtube.com/v/VwUONYlD0hs | J181: =IF(ISERROR(SEARCH(KeyWord,TblLibrary[[#This Row],[Title]])),0,1) -> 1 | K181: =IF(TblLibrary[[#This Row],[Selected]]=1,MAX($K$20:K180)+1,"") -> 158
D182: MrExcel | E182: Dates and Times | F182: Timestamp - 1106 - Learn Excel from MrExcel Podcast | G182: http://www.youtube.com/watch?v=11xl-rEBcH4&list=PLC92025CFC4923948 | H182: =LEFT(TblLibrary[[#This Row],[LinkWithPlaylist]],FIND("&",TblLibrary[[#This Row],[LinkWithPlaylist]])-1) -> http://www.youtube.com/watch?v=11xl-rEBcH4 | I182: =SUBSTITUTE(SUBSTITUTE(TblLibrary[[#This Row],[LinkToVideo]],"watch?",""),"v=","v/") -> http://www.youtube.com/v/11xl-rEBcH4 | J182: =IF(ISERROR(SEARCH(KeyWord,TblLibrary[[#This Row],[Title]])),0,1) -> 1 | K182: =IF(TblLibrary[[#This Row],[Selected]]=1,MAX($K$20:K181)+1,"") -> 159
D183: MrExcel | E183: Dates and Times | F183: MrExcel's Learn Excel #414 - Joining Dates | G183: http://www.youtube.com/watch?v=2xKWVVlZNWQ&list=PLC92025CFC4923948 | H183: =LEFT(TblLibrary[[#This Row],[LinkWithPlaylist]],FIND("&",TblLibrary[[#This Row],[LinkWithPlaylist]])-1) -> http://www.youtube.com/watch?v=2xKWVVlZNWQ | I183: =SUBSTITUTE(SUBSTITUTE(TblLibrary[[#This Row],[LinkToVideo]],"watch?",""),"v=","v/") -> http://www.youtube.com/v/2xKWVVlZNWQ | J183: =IF(ISERROR(SEARCH(KeyWord,TblLibrary[[#This Row],[Title]])),0,1) -> 1 | K183: =IF(TblLibrary[[#This Row],[Selected]]=1,MAX($K$20:K182)+1,"") -> 160
D184: MrExcel | E184: Dates and Times | F184: Years Months Days - 1113 - Learn Excel from MrExcel Podcast | G184: http://www.youtube.com/watch?v=qvw1J1HWPt4&list=PLC92025CFC4923948 | H184: =LEFT(TblLibrary[[#This Row],[LinkWithPlaylist]],FIND("&",TblLibrary[[#This Row],[LinkWithPlaylist]])-1) -> http://www.youtube.com/watch?v=qvw1J1HWPt4 | I184: =SUBSTITUTE(SUBSTITUTE(TblLibrary[[#This Row],[LinkToVideo]],"watch?",""),"v=","v/") -> http://www.youtube.com/v/qvw1J1HWPt4 | J184: =IF(ISERROR(SEARCH(KeyWord,TblLibrary[[#This Row],[Title]])),0,1) -> 1 | K184: =IF(TblLibrary[[#This Row],[Selected]]=1,MAX($K$20:K183)+1,"") -> 161
D185: MrExcel | E185: Dates and Times | F185: MrExcel's Learn Excel #399 - Workday Calculations | G185: http://www.youtube.com/watch?v=SJPvp0uOMTw&list=PLC92025CFC4923948 | H185: =LEFT(TblLibrary[[#This Row],[LinkWithPlaylist]],FIND("&",TblLibrary[[#This Row],[LinkWithPlaylist]])-1) -> http://www.youtube.com/watch?v=SJPvp0uOMTw | I185: =SUBSTITUTE(SUBSTITUTE(TblLibrary[[#This Row],[LinkToVideo]],"watch?",""),"v=","v/") -> http://www.youtube.com/v/SJPvp0uOMTw | J185: =IF(ISERROR(SEARCH(KeyWord,TblLibrary[[#This Row],[Title]])),0,1) -> 1 | K185: =IF(TblLibrary[[#This Row],[Selected]]=1,MAX($K$20:K184)+1,"") -> 162
D186: MrExcel | E186: Dates and Times | F186: ADM Calculation - 1133 - Learn Excel from MrExcel Podcast | G186: http://www.youtube.com/watch?v=xpNGlmz6Cis&list=PLC92025CFC4923948 | H186: =LEFT(TblLibrary[[#This Row],[LinkWithPlaylist]],FIND("&",TblLibrary[[#This Row],[LinkWithPlaylist]])-1) -> http://www.youtube.com/watch?v=xpNGlmz6Cis | I186: =SUBSTITUTE(SUBSTITUTE(TblLibrary[[#This Row],[LinkToVideo]],"watch?",""),"v=","v/") -> http://www.youtube.com/v/xpNGlmz6Cis | J186: =IF(ISERROR(SEARCH(KeyWord,TblLibrary[[#This Row],[Title]])),0,1) -> 1 | K186: =IF(TblLibrary[[#This Row],[Selected]]=1,MAX($K$20:K185)+1,"") -> 163
D187: MrExcel | E187: Dates and Times | F187: Filling Quarters - 1132 - Learn Excel from MrExcel Podcast | G187: http://www.youtube.com/watch?v=RnzdEO7tIII&list=PLC92025CFC4923948 | H187: =LEFT(TblLibrary[[#This Row],[LinkWithPlaylist]],FIND("&",TblLibrary[[#This Row],[LinkWithPlaylist]])-1) -> http://www.youtube.com/watch?v=RnzdEO7tIII | I187: =SUBSTITUTE(SUBSTITUTE(TblLibrary[[#This Row],[LinkToVideo]],"watch?",""),"v=","v/") -> http://www.youtube.com/v/RnzdEO7tIII | J187: =IF(ISERROR(SEARCH(KeyWord,TblLibrary[[#This Row],[Title]])),0,1) -> 1 | K187: =IF(TblLibrary[[#This Row],[Selected]]=1,MAX($K$20:K186)+1,"") -> 164
D188: MrExcel | E188: Dates and Times | F188: Duel: First Week of Month - 1129 - Learn Excel from MrExcel Podcast | G188: http://www.youtube.com/watch?v=yVsVsddn8hM&list=PLC92025CFC4923948 | H188: =LEFT(TblLibrary[[#This Row],[LinkWithPlaylist]],FIND("&",TblLibrary[[#This Row],[LinkWithPlaylist]])-1) -> http://www.youtube.com/watch?v=yVsVsddn8hM | I188: =SUBSTITUTE(SUBSTITUTE(TblLibrary[[#This Row],[LinkToVideo]],"watch?",""),"v=","v/") -> http://www.youtube.com/v/yVsVsddn8hM | J188: =IF(ISERROR(SEARCH(KeyWord,TblLibrary[[#This Row],[Title]])),0,1) -> 1 | K188: =IF(TblLibrary[[#This Row],[Selected]]=1,MAX($K$20:K187)+1,"") -> 165
D189: MrExcel | E189: Dates and Times | F189: MrExcel's Learn Excel #357 - Date Differences | G189: http://www.youtube.com/watch?v=CA20uAPeyjQ&list=PLC92025CFC4923948 | H189: =LEFT(TblLibrary[[#This Row],[LinkWithPlaylist]],FIND("&",TblLibrary[[#This Row],[LinkWithPlaylist]])-1) -> http://www.youtube.com/watch?v=CA20uAPeyjQ | I189: =SUBSTITUTE(SUBSTITUTE(TblLibrary[[#This Row],[LinkToVideo]],"watch?",""),"v=","v/") -> http://www.youtube.com/v/CA20uAPeyjQ | J189: =IF(ISERROR(SEARCH(KeyWord,TblLibrary[[#This Row],[Title]])),0,1) -> 1 | K189: =IF(TblLibrary[[#This Row],[Selected]]=1,MAX($K$20:K188)+1,"") -> 166
D190: MrExcel | E190: Dueling Excel Podcasts with Bill Jelen and Mike Girvin | F190: Dueling Excel - "Find Cubic Feet": Podcast #1492 | G190: http://www.youtube.com/watch?v=cCHT-VthrE0&list=PL2AA1B5AC371D29A3&index=1 | H190: =LEFT(TblLibrary[[#This Row],[LinkWithPlaylist]],FIND("&",TblLibrary[[#This Row],[LinkWithPlaylist]])-1) -> http://www.youtube.com/watch?v=cCHT-VthrE0 | I190: =SUBSTITUTE(SUBSTITUTE(TblLibrary[[#This Row],[LinkToVideo]],"watch?",""),"v=","v/") -> http://www.youtube.com/v/cCHT-VthrE0 | J190: =IF(ISERROR(SEARCH(KeyWord,TblLibrary[[#This Row],[Title]])),0,1) -> 1 | K190: =IF(TblLibrary[[#This Row],[Selected]]=1,MAX($K$20:K189)+1,"") -> 167
D191: MrExcel | E191: Dueling Excel Podcasts with Bill Jelen and Mike Girvin | F191: Dueling Excel - "Watch Box": Podcast #1488 | G191: http://www.youtube.com/watch?v=qWFZvcIURUU&list=PL2AA1B5AC371D29A3&index=2 | H191: =LEFT(TblLibrary[[#This Row],[LinkWithPlaylist]],FIND("&",TblLibrary[[#This Row],[LinkWithPlaylist]])-1) -> http://www.youtube.com/watch?v=qWFZvcIURUU | I191: =SUBSTITUTE(SUBSTITUTE(TblLibrary[[#This Row],[LinkToVideo]],"watch?",""),"v=","v/") -> http://www.youtube.com/v/qWFZvcIURUU | J191: =IF(ISERROR(SEARCH(KeyWord,TblLibrary[[#This Row],[Title]])),0,1) -> 1 | K191: =IF(TblLibrary[[#This Row],[Selected]]=1,MAX($K$20:K190)+1,"") -> 168
D192: MrExcel | E192: Dueling Excel Podcasts with Bill Jelen and Mike Girvin | F192: Dueling Excel - "Rounding Invoices": Podcast #1483 | G192: http://www.youtube.com/watch?v=x8v82z2Sq4s&list=PL2AA1B5AC371D29A3&index=3 | H192: =LEFT(TblLibrary[[#This Row],[LinkWithPlaylist]],FIND("&",TblLibrary[[#This Row],[LinkWithPlaylist]])-1) -> http://www.youtube.com/watch?v=x8v82z2Sq4s | I192: =SUBSTITUTE(SUBSTITUTE(TblLibrary[[#This Row],[LinkToVideo]],"watch?",""),"v=","v/") -> http://www.youtube.com/v/x8v82z2Sq4s | J192: =IF(ISERROR(SEARCH(KeyWord,TblLibrary[[#This Row],[Title]])),0,1) -> 1 | K192: =IF(TblLibrary[[#This Row],[Selected]]=1,MAX($K$20:K191)+1,"") -> 169
D193: MrExcel | E193: Dueling Excel Podcasts with Bill Jelen and Mike Girvin | F193: Learn Excel 2010 - "Rank Ties Redo": "Podcast #1478 | G193: http://www.youtube.com/watch?v=t_ZLCSUj9Cw&list=PL2AA1B5AC371D29A3 | H193: =LEFT(TblLibrary[[#This Row],[LinkWithPlaylist]],FIND("&",TblLibrary[[#This Row],[LinkWithPlaylist]])-1) -> http://www.youtube.com/watch?v=t_ZLCSUj9Cw | I193: =SUBSTITUTE(SUBSTITUTE(TblLibrary[[#This Row],[LinkToVideo]],"watch?",""),"v=","v/") -> http://www.youtube.com/v/t_ZLCSUj9Cw | J193: =IF(ISERROR(SEARCH(KeyWord,TblLibrary[[#This Row],[Title]])),0,1) -> 1 | K193: =IF(TblLibrary[[#This Row],[Selected]]=1,MAX($K$20:K192)+1,"") -> 170
D194: MrExcel | E194: Dueling Excel Podcasts with Bill Jelen and Mike Girvin | F194: Dueling Excel - "Rank Ties by Weight": Podcast #1473 | G194: http://www.youtube.com/watch?v=AZ5uZaXVj3U&list=PL2AA1B5AC371D29A3&index=5 | H194: =LEFT(TblLibrary[[#This Row],[LinkWithPlaylist]],FIND("&",TblLibrary[[#This Row],[LinkWithPlaylist]])-1) -> http://www.youtube.com/watch?v=AZ5uZaXVj3U | I194: =SUBSTITUTE(SUBSTITUTE(TblLibrary[[#This Row],[LinkToVideo]],"watch?",""),"v=","v/") -> http://www.youtube.com/v/AZ5uZaXVj3U | J194: =IF(ISERROR(SEARCH(KeyWord,TblLibrary[[#This Row],[Title]])),0,1) -> 1 | K194: =IF(TblLibrary[[#This Row],[Selected]]=1,MAX($K$20:K193)+1,"") -> 171
D195: MrExcel | E195: Dueling Excel Podcasts with Bill Jelen and Mike Girvin | F195: Dueling Excel - "Keep The Last Duplicate": Podcast #1464 | G195: http://www.youtube.com/watch?v=qJj5bDsP8vc&list=PL2AA1B5AC371D29A3&index=6 | H195: =LEFT(TblLibrary[[#This Row],[LinkWithPlaylist]],FIND("&",TblLibrary[[#This Row],[LinkWithPlaylist]])-1) -> http://www.youtube.com/watch?v=qJj5bDsP8vc | I195: =SUBSTITUTE(SUBSTITUTE(TblLibrary[[#This Row],[LinkToVideo]],"watch?",""),"v=","v/") -> http://www.youtube.com/v/qJj5bDsP8vc | J195: =IF(ISERROR(SEARCH(KeyWord,TblLibrary[[#This Row],[Title]])),0,1) -> 1 | K195: =IF(TblLibrary[[#This Row],[Selected]]=1,MAX($K$20:K194)+1,"") -> 172
D196: MrExcel | E196: Dueling Excel Podcasts with Bill Jelen and Mike Girvin | F196: Dueling Excel - "Pivot Table Totals on the Left": Podcast #1459 | G196: http://www.youtube.com/watch?v=akMDR5_2aD4&list=PL2AA1B5AC371D29A3&index=7 | H196: =LEFT(TblLibrary[[#This Row],[LinkWithPlaylist]],FIND("&",TblLibrary[[#This Row],[LinkWithPlaylist]])-1) -> http://www.youtube.com/watch?v=akMDR5_2aD4 | I196: =SUBSTITUTE(SUBSTITUTE(TblLibrary[[#This Row],[LinkToVideo]],"watch?",""),"v=","v/") -> http://www.youtube.com/v/akMDR5_2aD4 | J196: =IF(ISERROR(SEARCH(KeyWord,TblLibrary[[#This Row],[Title]])),0,1) -> 1 | K196: =IF(TblLibrary[[#This Row],[Selected]]=1,MAX($K$20:K195)+1,"") -> 173
D197: MrExcel | E197: Dueling Excel Podcasts with Bill Jelen and Mike Girvin | F197: Dueling Excel - "The Top 70%": Podcast #1454 | G197: http://www.youtube.com/watch?v=vJQkRZ0Hf9Q&list=PL2AA1B5AC371D29A3&index=8 | H197: =LEFT(TblLibrary[[#This Row],[LinkWithPlaylist]],FIND("&",TblLibrary[[#This Row],[LinkWithPlaylist]])-1) -> http://www.youtube.com/watch?v=vJQkRZ0Hf9Q | I197: =SUBSTITUTE(SUBSTITUTE(TblLibrary[[#This Row],[LinkToVideo]],"watch?",""),"v=","v/") -> http://www.youtube.com/v/vJQkRZ0Hf9Q | J197: =IF(ISERROR(SEARCH(KeyWord,TblLibrary[[#This Row],[Title]])),0,1) -> 1 | K197: =IF(TblLibrary[[#This Row],[Selected]]=1,MAX($K$20:K196)+1,"") -> 174
D198: MrExcel | E198: Dueling Excel Podcasts with Bill Jelen and Mike Girvin | F198: Dueling Excel - "Positive Subtotals": Podcast #1449 | G198: http://www.youtube.com/watch?v=GaKDlIkYeZU&list=PL2AA1B5AC371D29A3&index=9 | H198: =LEFT(TblLibrary[[#This Row],[LinkWithPlaylist]],FIND("&",TblLibrary[[#This Row],[LinkWithPlaylist]])-1) -> http://www.youtube.com/watch?v=GaKDlIkYeZU | I198: =SUBSTITUTE(SUBSTITUTE(TblLibrary[[#This Row],[LinkToVideo]],"watch?",""),"v=","v/") -> http://www.youtube.com/v/GaKDlIkYeZU | J198: =IF(ISERROR(SEARCH(KeyWord,TblLibrary[[#This Row],[Title]])),0,1) -> 1 | K198: =IF(TblLibrary[[#This Row],[Selected]]=1,MAX($K$20:K197)+1,"") -> 175
D199: MrExcel | E199: Dueling Excel Podcasts with Bill Jelen and Mike Girvin | F199: Dueling Excel - "MODE from Frequency Table": Podcast #1446 | G199: http://www.youtube.com/watch?v=H1ZSjIZlL4k&list=PL2AA1B5AC371D29A3&index=10 | H199: =LEFT(TblLibrary[[#This Row],[LinkWithPlaylist]],FIND("&",TblLibrary[[#This Row],[LinkWithPlaylist]])-1) -> http://www.youtube.com/watch?v=H1ZSjIZlL4k | I199: =SUBSTITUTE(SUBSTITUTE(TblLibrary[[#This Row],[LinkToVideo]],"watch?",""),"v=","v/") -> http://www.youtube.com/v/H1ZSjIZlL4k | J199: =IF(ISERROR(SEARCH(KeyWord,TblLibrary[[#This Row],[Title]])),0,1) -> 1 | K199: =IF(TblLibrary[[#This Row],[Selected]]=1,MAX($K$20:K198)+1,"") -> 176
D200: MrExcel | E200: Dueling Excel Podcasts with Bill Jelen and Mike Girvin | F200: Dueling Excel - "Algebra? No Algebra!": Podcast #1439 | G200: http://www.youtube.com/watch?v=RiksDvcAlog&list=PL2AA1B5AC371D29A3&index=11 | H200: =LEFT(TblLibrary[[#This Row],[LinkWithPlaylist]],FIND("&",TblLibrary[[#This Row],[LinkWithPlaylist]])-1) -> http://www.youtube.com/watch?v=RiksDvcAlog | I200: =SUBSTITUTE(SUBSTITUTE(TblLibrary[[#This Row],[LinkToVideo]],"watch?",""),"v=","v/") -> http://www.youtube.com/v/RiksDvcAlog | J200: =IF(ISERROR(SEARCH(KeyWord,TblLibrary[[#This Row],[Title]])),0,1) -> 1 | K200: =IF(TblLibrary[[#This Row],[Selected]]=1,MAX($K$20:K199)+1,"") -> 177
D201: MrExcel | E201: Dueling Excel Podcasts with Bill Jelen and Mike Girvin | F201: Dueling Excel - "Count by Quarter Hour": Podcast #1434 | G201: http://www.youtube.com/watch?v=o_SNVDBuUoc&list=PL2AA1B5AC371D29A3&index=12 | H201: =LEFT(TblLibrary[[#This Row],[LinkWithPlaylist]],FIND("&",TblLibrary[[#This Row],[LinkWithPlaylist]])-1) -> http://www.youtube.com/watch?v=o_SNVDBuUoc | I201: =SUBSTITUTE(SUBSTITUTE(TblLibrary[[#This Row],[LinkToVideo]],"watch?",""),"v=","v/") -> http://www.youtube.com/v/o_SNVDBuUoc | J201: =IF(ISERROR(SEARCH(KeyWord,TblLibrary[[#This Row],[Title]])),0,1) -> 1 | K201: =IF(TblLibrary[[#This Row],[Selected]]=1,MAX($K$20:K200)+1,"") -> 178
D202: MrExcel | E202: Dueling Excel Podcasts with Bill Jelen and Mike Girvin | F202: Dueling Excel - "Collapse with a Formula": Podcast #1429 | G202: http://www.youtube.com/watch?v=9eGp2-OvqOs&list=PL2AA1B5AC371D29A3&index=13 | H202: =LEFT(TblLibrary[[#This Row],[LinkWithPlaylist]],FIND("&",TblLibrary[[#This Row],[LinkWithPlaylist]])-1) -> http://www.youtube.com/watch?v=9eGp2-OvqOs | I202: =SUBSTITUTE(SUBSTITUTE(TblLibrary[[#This Row],[LinkToVideo]],"watch?",""),"v=","v/") -> http://www.youtube.com/v/9eGp2-OvqOs | J202: =IF(ISERROR(SEARCH(KeyWord,TblLibrary[[#This Row],[Title]])),0,1) -> 1 | K202: =IF(TblLibrary[[#This Row],[Selected]]=1,MAX($K$20:K201)+1,"") -> 179
D203: MrExcel | E203: Dueling Excel Podcasts with Bill Jelen and Mike Girvin | F203: Dueling Excel- "Price Beneath Lookup Value": #1424 | G203: http://www.youtube.com/watch?v=qiMr0xVbI0E&list=PL2AA1B5AC371D29A3&index=14 | H203: =LEFT(TblLibrary[[#This Row],[LinkWithPlaylist]],FIND("&",TblLibrary[[#This Row],[LinkWithPlaylist]])-1) -> http://www.youtube.com/watch?v=qiMr0xVbI0E | I203: =SUBSTITUTE(SUBSTITUTE(TblLibrary[[#This Row],[LinkToVideo]],"watch?",""),"v=","v/") -> http://www.youtube.com/v/qiMr0xVbI0E | J203: =IF(ISERROR(SEARCH(KeyWord,TblLibrary[[#This Row],[Title]])),0,1) -> 1 | K203: =IF(TblLibrary[[#This Row],[Selected]]=1,MAX($K$20:K202)+1,"") -> 180
D204: MrExcel | E204: Dueling Excel Podcasts with Bill Jelen and Mike Girvin | F204: Dueling Excel - "Get Matching Records": #1420 | G204: http://www.youtube.com/watch?v=tw6x2Ljarc4&list=PL2AA1B5AC371D29A3&index=15 | H204: =LEFT(TblLibrary[[#This Row],[LinkWithPlaylist]],FIND("&",TblLibrary[[#This Row],[LinkWithPlaylist]])-1) -> http://www.youtube.com/watch?v=tw6x2Ljarc4 | I204: =SUBSTITUTE(SUBSTITUTE(TblLibrary[[#This Row],[LinkToVideo]],"watch?",""),"v=","v/") -> http://www.youtube.com/v/tw6x2Ljarc4 | J204: =IF(ISERROR(SEARCH(KeyWord,TblLibrary[[#This Row],[Title]])),0,1) -> 1 | K204: =IF(TblLibrary[[#This Row],[Selected]]=1,MAX($K$20:K203)+1,"") -> 181
... 4303 more rows
